﻿Merchandising Type Category,Detailed Merchant Category,Supplier,Purchase Details,Transaction Date,Value,Department
Transportation,Passenger Railways,Ticketofficesale - Swtrains Frat,Supplies and Services related expenditure,01/10/2018,8.4,Director of Children's Services and Education
Transportation,Passenger Railways,Ticketofficesale - Swtrainsports,Transport related expenditure,01/10/2018,80.3,"Director of HR, Legal,  Audit & Performance"
Retail,Pet Stores/Food & Supply,Jolleys The Pet Supers,Supplies and Services related expenditure,01/10/2018,18.43,Director of Children's Services and Education
Facilities/Repair Supplies,Lumber/Build. Supply Stores,B & Q 1260,Supplies and Services related expenditure,01/10/2018,12.52,Director of Adult Services
Government,Govt Serv - Default,Portsmouth City Co,Transport related expenditure,01/10/2018,31.67,Director of Adult Services
Equipment And Furniture,Household Appliance Stores,Tlc Southern Ltd,Supplies and Services related expenditure,01/10/2018,12,"Director of Housing, Neighbourhood and Building Services"
Business To Business Facility/,Industrial Supplies - Def,Www.Arco.Co.Uk,Supplies and Services related expenditure,01/10/2018,189.77,Director of Regeneration
Entertainment,Commercial/Pro Sports,Www.Leisureleagues.Co.,Agency and Third Party Payments related expenditure,01/10/2018,60,Director of Children's Services and Education
Transportation,Local Commuter Transport,Hovertravel Ltd,Agency and Third Party Payments related expenditure,01/10/2018,399,Director of Children's Services and Education
Retail,Grocery Stores/Supermarkets,Tesco Store 3055,Supplies and Services related expenditure,01/10/2018,40.19,Director of Children's Services and Education
Retail,Grocery Stores/Supermarkets,Tesco Store 3055,Supplies and Services related expenditure,01/10/2018,45.93,Director of Children's Services and Education
Retail,Grocery Stores/Supermarkets,Asda Stores,Supplies and Services related expenditure,01/10/2018,9.32,Director of Adult Services
Transportation,Bus Lines/Charter/Tour,First Bus,Supplies and Services related expenditure,01/10/2018,70,"Director of Housing, Neighbourhood and Building Services"
Professional Services,Detective/Protective Agen,Security Industry,Supplies and Services related expenditure,01/10/2018,220,"Director of Housing, Neighbourhood and Building Services"
Other Supplies,Discount Stores,Argos Direct,Supplies and Services related expenditure,01/10/2018,136.65,Director of Children's Services and Education
Government,Govt Serv - Default,London Boro Of Redbri,Supplies and Services related expenditure,01/10/2018,11,Director of Children's Services and Education
Business Expenses/Services,Postage Stamps,Post Office Counter,Supplies and Services related expenditure,01/10/2018,9.75,Director of Children's Services and Education
Business Expenses/Services,Postage Stamps,Post Office Counter,Supplies and Services related expenditure,01/10/2018,9.75,Director of Children's Services and Education
Transportation,Passenger Railways,Ticketofficesale - Swtrainsports,Supplies and Services related expenditure,01/10/2018,21.9,Director of Children's Services and Education
Facilities/Repair Supplies,Lumber/Build. Supply Stores,B & Q 1260,Supplies and Services related expenditure,01/10/2018,3.96,"Director of Culture, Leisure & Regulatory Services"
Retail,Pet Stores/Food & Supply,Pets At Home Ltd,Supplies and Services related expenditure,01/10/2018,10,"Director of Culture, Leisure & Regulatory Services"
Facilities/Repair Supplies,Lumber/Build. Supply Stores,Homebase Ltd 661,Supplies and Services related expenditure,01/10/2018,26.67,"Director of Culture, Leisure & Regulatory Services"
Business To Business Facility/,Industrial Supplies - Def,Arco Ltd,Supplies and Services related expenditure,01/10/2018,79.4,"Director of Culture, Leisure & Regulatory Services"
Automobile Services & Supplies,Service Stations,Malthurst Limited,Supplies and Services related expenditure,01/10/2018,63.33,"Director of Housing, Neighbourhood and Building Services"
Transportation,"Parking Lots, Meters, Garages",3c_*portsmouth City Co,Transport related expenditure,01/10/2018,2.17,Director of Children's Services and Education
Retail,Grocery Stores/Supermarkets,Asda Groceries Online,Supplies and Services related expenditure,01/10/2018,6.67,Director of Children's Services and Education
Retail,Grocery Stores/Supermarkets,Asda Groceries Online,Supplies and Services related expenditure,01/10/2018,42.03,Director of Children's Services and Education
Eating And Drinking Places,Fast Food Restaurants,Pure Se1 7ly,Supplies and Services related expenditure,01/10/2018,5.05,Director of Children's Services and Education
Transportation,Passenger Railways,Selfserve Ticket,Transport related expenditure,01/10/2018,74.3,Director of Children's Services and Education
Business To Business Facility/,Industrial Supplies - Def,Www.Arco.Co.Uk,Supplies and Services related expenditure,01/10/2018,226.91,"Director of Housing, Neighbourhood and Building Services"
Retail,Grocery Stores/Supermarkets,Asda Groceries Online,Supplies and Services related expenditure,01/10/2018,-7.29,Director of Children's Services and Education
Business Services,Business Services - Default,Indeed Tel+35312545907,Employees related expenditure,01/10/2018,19,Director of Children's Services and Education
Retail,Grocery Stores/Supermarkets,Asda Groceries Online,Supplies and Services related expenditure,01/10/2018,182.21,Director of Children's Services and Education
Retail,Grocery Stores/Supermarkets,Asda Groceries Online,Supplies and Services related expenditure,01/10/2018,22.91,Director of Children's Services and Education
Eating And Drinking Places,Eating Places/Restaurants,Greggs Plc,Supplies and Services related expenditure,01/10/2018,3.2,Director of Children's Services and Education
Facilities/Repair Supplies,Lumber/Build. Supply Stores,B & Q 1260,Supplies and Services related expenditure,01/10/2018,5.34,Director of Children's Services and Education
Government,Govt Serv - Default,Portsmouth City Co,Supplies and Services related expenditure,01/10/2018,2.17,Director of Children's Services and Education
Facilities/Repair Supplies,Automotive Parts Stores,Ecp 046 Portsmouth,Transport related expenditure,01/10/2018,23.76,Director of Adult Services
Eating And Drinking Places,Fast Food Restaurants,Micks Mobile Catering,Supplies and Services related expenditure,01/10/2018,7.1,Director of Children's Services and Education
Retail,Grocery Stores/Supermarkets,Tesco Stores 4579,Agency and Third Party Payments related expenditure,01/10/2018,24.99,Director of Children's Services and Education
Facilities/Repair Supplies,Hardware Stores,Www.Schoolmeritstickers.,Agency and Third Party Payments related expenditure,01/10/2018,118.4,Director of Regeneration
Transportation,Passenger Railways,Trainline,Transport related expenditure,01/10/2018,76.5,Director of Children's Services and Education
Hotels And Motels,Lodging/Hotels/Motels/Resorts,Holiday Inn Express Norwi,Supplies and Services related expenditure,01/10/2018,74.13,Director of Children's Services and Education
Hotels And Motels,Lodging/Hotels/Motels/Resorts,Holiday Inn Express Norwi,Supplies and Services related expenditure,01/10/2018,90.79,Director of Children's Services and Education
Entertainment,Bands/Orchestras/Entertain,Pyramids Centre,Supplies and Services related expenditure,01/10/2018,5.4,Director of Adult Services
Transportation,Passenger Railways,Ticketofficesale - Swtrains Frat,Supplies and Services related expenditure,01/10/2018,19.33,Director of Children's Services and Education
Eating And Drinking Places,Eating Places/Restaurants,Subway Ocean Park,Supplies and Services related expenditure,01/10/2018,3.67,Director of Children's Services and Education
Eating And Drinking Places,Eating Places/Restaurants,Subway Ocean Park,Supplies and Services related expenditure,01/10/2018,2.15,Director of Children's Services and Education
Eating And Drinking Places,Eating Places/Restaurants,Subway Ocean Park,Supplies and Services related expenditure,01/10/2018,3.22,Director of Children's Services and Education
Eating And Drinking Places,Eating Places/Restaurants,Canoe Lake Leisure Ltd,Supplies and Services related expenditure,01/10/2018,6,Director of Children's Services and Education
Retail,Sporting Goods Stores,Portsmouth Golf Centre,Supplies and Services related expenditure,01/10/2018,6.67,Director of Children's Services and Education
Other Supplies,Discount Stores,Argos Ltd,Supplies and Services related expenditure,01/10/2018,14.16,"Director of Housing, Neighbourhood and Building Services"
Government,Govt Serv - Default,Portsmouth City Co,Supplies and Services related expenditure,01/10/2018,31.67,Director of Children's Services and Education
Facilities/Repair Supplies,Lawn/Garden Supply/Nursery,Carters Of Swanwic,Supplies and Services related expenditure,01/10/2018,22.43,"Director of Housing, Neighbourhood and Building Services"
Business Expenses/Services,Postage Stamps,Post Office Counter,Agency and Third Party Payments related expenditure,01/10/2018,63.5,Director of Children's Services and Education
Other Supplies,Misc Speciality Retail,Age Co Iadvisors,Supplies and Services related expenditure,01/10/2018,36.48,Director of Adult Services
Government,Colleges/Univ/Jc/Profession,The Free Test Comp,Supplies and Services related expenditure,01/10/2018,39.5,"Director of Housing, Neighbourhood and Building Services"
Other Supplies,Catalog Merchant,Www.Osbornebooks.Co.Uk,Supplies and Services related expenditure,01/10/2018,100.25,"Director of Housing, Neighbourhood and Building Services"
Retail,Misc Food Stores - Default,Eastney Convenience St,Supplies and Services related expenditure,01/10/2018,1.75,Director of Adult Services
Medical,Lab/Med/Hospital Equipment,Wightman & Parrish Ltd,Supplies and Services related expenditure,01/10/2018,12.65,"Director of Housing, Neighbourhood and Building Services"
Facilities Maintenance,Specialty Cleaning/Polishing,Chaucer Solutions Ltd,Premises related expenditure,01/10/2018,39.69,Director of Portsmouth International Port
Medical,Lab/Med/Hospital Equipment,Wightman & Parrish Ltd,Premises related expenditure,01/10/2018,83.52,Director of Portsmouth International Port
Business To Business Facility/,Electrical Parts/Equipment,Edmundson Electrical,Premises related expenditure,01/10/2018,150.5,Director of Portsmouth International Port
Business To Business Facility/,Electrical Parts/Equipment,Edmundson Electrical,Premises related expenditure,01/10/2018,220.78,Director of Portsmouth International Port
Retail,Misc Food Stores - Default,Harting Stores,Supplies and Services related expenditure,01/10/2018,24,Director of Children's Services and Education
Retail,Grocery Stores/Supermarkets,Asda Stores,Supplies and Services related expenditure,01/10/2018,12.4,Director of Adult Services
Retail,Grocery Stores/Supermarkets,Asda Stores,Supplies and Services related expenditure,01/10/2018,29.17,Director of Adult Services
Government,Govt Serv - Default,Hampshire County Counc,Supplies and Services related expenditure,01/10/2018,57.3,Director of Children's Services and Education
Retail,Artist/Craft Shops,Tinknstink,Supplies and Services related expenditure,01/10/2018,7.42,Director of Children's Services and Education
Business To Business Eqpt/Furn,Book Stores,Amzn Mktp Uk,Supplies and Services related expenditure,01/10/2018,91.85,Director of Children's Services and Education
Retail,Artist/Craft Shops,Baker Ross,Supplies and Services related expenditure,01/10/2018,91.28,Director of Children's Services and Education
Miscellaneous,Fines,Combined Court Cen,Supplies and Services related expenditure,01/10/2018,355,"Director of Housing, Neighbourhood and Building Services"
Medical,Dentists/Orthodontisis,Lake Road Dental Pract,Supplies and Services related expenditure,01/10/2018,21.6,Director of Children's Services and Education
Government,Govt Serv - Default,Portsmouth City Co,Transport related expenditure,01/10/2018,2.42,Chief Exec
Government,Govt Serv - Default,Portsmouth City Co,Transport related expenditure,01/10/2018,10.25,Chief Exec
Transportation,"Parking Lots, Meters, Garages",3c_*portsmouth City Co,Transport related expenditure,01/10/2018,4.5,Director of Adult Services
Business To Business Eqpt/Furn,Book Stores,Amzn Mktp UK Amazon.Co.Uk,Supplies and Services related expenditure,01/10/2018,-80.98,Director of Adult Services
Retail,Grocery Stores/Supermarkets,Asda Groceries Online,Supplies and Services related expenditure,01/10/2018,-2.07,Director of Children's Services and Education
Retail,Grocery Stores/Supermarkets,Asda Groceries Online,Supplies and Services related expenditure,01/10/2018,74.43,Director of Children's Services and Education
Automobile Services & Supplies,Service Stations,Asda Petrol 4583,Transport related expenditure,01/10/2018,37.73,Director of Regeneration
Retail,Grocery Stores/Supermarkets,Www.My.Morrisons.C,Supplies and Services related expenditure,01/10/2018,20,Director of Children's Services and Education
Retail,Grocery Stores/Supermarkets,Asda Groceries Online,Supplies and Services related expenditure,01/10/2018,44.96,Director of Children's Services and Education
Retail,Grocery Stores/Supermarkets,Asda Groceries Online,Supplies and Services related expenditure,01/10/2018,5.52,Director of Children's Services and Education
Retail,Grocery Stores/Supermarkets,Asda Groceries Online,Supplies and Services related expenditure,01/10/2018,42.96,Director of Children's Services and Education
Retail,Grocery Stores/Supermarkets,Asda Groceries Online,Supplies and Services related expenditure,01/10/2018,7.42,Director of Children's Services and Education
Retail,Grocery Stores/Supermarkets,Welcome Frobisher Hous,Supplies and Services related expenditure,01/10/2018,3.69,Director of Children's Services and Education
Transportation,Passenger Railways,Ticketofficesale - Swtrains Soto,Transport related expenditure,01/10/2018,39.9,Director of Children's Services and Education
Business To Business Eqpt/Furn,Book Stores,Amzn Mktp Uk,Supplies and Services related expenditure,01/10/2018,1.16,"Director of Housing, Neighbourhood and Building Services"
Business To Business Eqpt/Furn,Book Stores,Amzn Mktp Uk,Supplies and Services related expenditure,01/10/2018,12.16,"Director of Housing, Neighbourhood and Building Services"
Facilities/Repair Supplies,Lumber/Build. Supply Stores,B & Q 1260,Supplies and Services related expenditure,01/10/2018,17.43,"Director of Housing, Neighbourhood and Building Services"
Transportation,Passenger Railways,Trainline,Transport related expenditure,01/10/2018,43.73,Director of Adult Services
Eating And Drinking Places,Eating Places/Restaurants,Subway Ocean Park,Supplies and Services related expenditure,01/10/2018,0.58,Director of Children's Services and Education
Eating And Drinking Places,Eating Places/Restaurants,Subway Ocean Park,Supplies and Services related expenditure,01/10/2018,3.8,Director of Children's Services and Education
Miscellaneous,Other Direct Marketers,Amazon.Co.Uk,Supplies and Services related expenditure,01/10/2018,19.15,Director of Children's Services and Education
Miscellaneous,Other Direct Marketers,Amazon.Co.Uk,Supplies and Services related expenditure,01/10/2018,19.15,Director of Children's Services and Education
Business Expenses/Services,Stationery Stores,Seawhite Of Bright,Supplies and Services related expenditure,01/10/2018,71,Director of Children's Services and Education
Business To Business Eqpt/Furn,Book Stores,Amzn Mktp Uk,Supplies and Services related expenditure,01/10/2018,29.97,Director of Children's Services and Education
Medical,Lab/Med/Hospital Equipment,Bitepro Limited,Supplies and Services related expenditure,01/10/2018,148.4,Director of Children's Services and Education
Transportation,Passenger Railways,Ticketofficesale - Swtrainsports,Transport related expenditure,01/10/2018,43.8,Director of Children's Services and Education
Hotels And Motels,Travelodge,Travelodge Gb0000,Agency and Third Party Payments related expenditure,01/10/2018,68.25,"Director of Housing, Neighbourhood and Building Services"
Hotels And Motels,Travelodge,Travelodge Gb0000,Agency and Third Party Payments related expenditure,01/10/2018,901.67,"Director of Housing, Neighbourhood and Building Services"
Hotels And Motels,Travelodge,Travelodge Gb0000,Agency and Third Party Payments related expenditure,01/10/2018,220.5,"Director of Housing, Neighbourhood and Building Services"
Hotels And Motels,Travelodge,Travelodge Gb0000,Agency and Third Party Payments related expenditure,01/10/2018,867.5,"Director of Housing, Neighbourhood and Building Services"
Transportation,Passenger Railways,New Southern Railw,Transport related expenditure,01/10/2018,18.8,Director of Children's Services and Education
Retail,Grocery Stores/Supermarkets,Asda Stores,Supplies and Services related expenditure,01/10/2018,3.13,Director of Adult Services
Transportation,Local Commuter Transport,Www.Wightlink.Co.Uk,Supplies and Services related expenditure,01/10/2018,39.6,Director of Children's Services and Education
Government,Schools - Default,Ttrockstars.Com,Supplies and Services related expenditure,01/10/2018,86.5,Director of Children's Services and Education
Automobile Services & Supplies,Service Stations,Green Road Service Stn,Supplies and Services related expenditure,01/10/2018,11.83,"Director of Housing, Neighbourhood and Building Services"
Retail,Grocery Stores/Supermarkets,Tesco Stores 2322,Premises related expenditure,01/10/2018,4.71,Director of Adult Services
Professional Services,Professional Services - Def,Myfonts,Supplies and Services related expenditure,01/10/2018,186.05,Director of Community & Communication
Business To Business Facility/,Hardware Equipment/Supplies,Croma Locksmiths & Sec,Supplies and Services related expenditure,01/10/2018,250.52,"Director of Housing, Neighbourhood and Building Services"
Business To Business Facility/,Industrial Supplies - Def,Arco Ltd,Supplies and Services related expenditure,01/10/2018,11.16,Director of Regeneration
Business To Business Eqpt/Furn,Book Stores,Amzn Mktp Uk,Supplies and Services related expenditure,01/10/2018,5.82,Director of Adult Services
Business To Business Eqpt/Furn,Book Stores,Amzn Mktp Uk,Supplies and Services related expenditure,01/10/2018,41.58,Director of Adult Services
Retail,Grocery Stores/Supermarkets,Sainsburys S/mkts,Supplies and Services related expenditure,01/10/2018,4.17,Director of Children's Services and Education
Medical,Lab/Med/Hospital Equipment,Wightman & Parrish,Premises related expenditure,01/10/2018,85.65,Director of Adult Services
Medical,Lab/Med/Hospital Equipment,Wightman & Parrish,Supplies and Services related expenditure,01/10/2018,276.34,Director of Adult Services
Medical,Lab/Med/Hospital Equipment,Wightman & Parrish,Supplies and Services related expenditure,01/10/2018,82.9,Director of Adult Services
Hotels And Motels,Travelodge,Travelodge Gb0000,Agency and Third Party Payments related expenditure,01/10/2018,31.5,"Director of Housing, Neighbourhood and Building Services"
Hotels And Motels,Travelodge,Travelodge Gb0000,Agency and Third Party Payments related expenditure,01/10/2018,428.33,"Director of Housing, Neighbourhood and Building Services"
Hotels And Motels,Travelodge,Travelodge Gb0000,Agency and Third Party Payments related expenditure,01/10/2018,68.25,"Director of Housing, Neighbourhood and Building Services"
Hotels And Motels,Travelodge,Travelodge Gb0000,Agency and Third Party Payments related expenditure,01/10/2018,573.33,"Director of Housing, Neighbourhood and Building Services"
Retail,Grocery Stores/Supermarkets,Tesco Store 3055,Supplies and Services related expenditure,01/10/2018,11.83,Director of Children's Services and Education
Retail,Grocery Stores/Supermarkets,Tesco Store 3055,Supplies and Services related expenditure,01/10/2018,67.77,Director of Children's Services and Education
Business Expenses/Services,Postage Stamps,Post Office Counter,Supplies and Services related expenditure,01/10/2018,6.95,Director of Children's Services and Education
Business To Business Eqpt/Furn,Book Stores,Amzn Mktp Uk,Supplies and Services related expenditure,01/10/2018,19.78,Director of Children's Services and Education
Retail,Grocery Stores/Supermarkets,Tesco Store 3055,Supplies and Services related expenditure,01/10/2018,39.3,Director of Children's Services and Education
Retail,Grocery Stores/Supermarkets,Tesco Store 3055,Supplies and Services related expenditure,01/10/2018,26.79,Director of Children's Services and Education
Retail,Grocery Stores/Supermarkets,Tesco Store 3055,Supplies and Services related expenditure,01/10/2018,82.24,Director of Children's Services and Education
Retail,Grocery Stores/Supermarkets,Tesco Store 3055,Supplies and Services related expenditure,01/10/2018,12.52,Director of Children's Services and Education
Retail,Grocery Stores/Supermarkets,Js Online Grocery,Supplies and Services related expenditure,01/10/2018,6.13,Director of Children's Services and Education
Retail,Grocery Stores/Supermarkets,Js Online Grocery,Supplies and Services related expenditure,01/10/2018,32,Director of Children's Services and Education
Other Supplies,Discount Stores,Www.Argos.Co.Uk,Supplies and Services related expenditure,01/10/2018,-136.65,Director of Children's Services and Education
Automobile Services & Supplies,Service Stations,Malthurst Petroleu,Transport related expenditure,01/10/2018,19.04,"Director of Housing, Neighbourhood and Building Services"
Business To Business Facility/,Industrial Supplies - Def,Arco Ltd,Supplies and Services related expenditure,01/10/2018,47.82,"Director of Housing, Neighbourhood and Building Services"
Business To Business Facility/,Industrial Supplies - Def,Arco Ltd,Supplies and Services related expenditure,01/10/2018,74.22,"Director of Housing, Neighbourhood and Building Services"
Miscellaneous,Continuity/Subscription Mercht,Google,Supplies and Services related expenditure,01/10/2018,500,Director of Children's Services and Education
Miscellaneous,Continuity/Subscription Mercht,Google,Supplies and Services related expenditure,01/10/2018,500,Director of Children's Services and Education
Utilities,Utilities/Elec/Gas/H2O/Sani,Castle Water,Premises related expenditure,01/10/2018,57.23,Director of Adult Services
Retail,Grocery Stores/Supermarkets,Sainsburys S/mkts,Supplies and Services related expenditure,01/10/2018,23.6,"Director of HR, Legal,  Audit & Performance"
Eating And Drinking Places,Eating Places/Restaurants,Subway Ocean Park,Supplies and Services related expenditure,01/10/2018,3.67,Director of Children's Services and Education
Retail,Sporting Goods Stores,Portsmouth Golf Centre,Supplies and Services related expenditure,01/10/2018,6.67,Director of Children's Services and Education
Miscellaneous,Fines,Combined Court Cen,Supplies and Services related expenditure,01/10/2018,121,"Director of Housing, Neighbourhood and Building Services"
Business To Business Eqpt/Furn,Computers/Peripherals/Software,Digital Id,Supplies and Services related expenditure,01/10/2018,32.94,Director of Children's Services and Education
Retail,Barber/Beauty Shops,Capital H&b Ltd,Supplies and Services related expenditure,01/10/2018,58.67,"Director of Housing, Neighbourhood and Building Services"
Professional Services,Professional Services - Def,Acsbusinesssupplies,Supplies and Services related expenditure,01/10/2018,10.67,Director of Children's Services and Education
Business Expenses/Services,Stationery Stores,Www.Tts-Groups.Co.Uk,Supplies and Services related expenditure,01/10/2018,35.98,Director of Children's Services and Education
Business To Business Eqpt/Furn,Book Stores,Amzn Mktp Uk,Supplies and Services related expenditure,01/10/2018,132.36,Director of Children's Services and Education
Retail,Grocery Stores/Supermarkets,Js Online Grocery,Supplies and Services related expenditure,01/10/2018,4.92,Director of Children's Services and Education
Retail,Grocery Stores/Supermarkets,Js Online Grocery,Supplies and Services related expenditure,01/10/2018,82.76,Director of Children's Services and Education
Retail,Grocery Stores/Supermarkets,Js Online Grocery,Supplies and Services related expenditure,01/10/2018,3.65,Director of Children's Services and Education
Automobile Services & Supplies,Service Stations,Farlington 133,Transport related expenditure,01/10/2018,20.89,Director of Adult Services
Retail,Grocery Stores/Supermarkets,Wm Morrisons Store,Supplies and Services related expenditure,01/10/2018,4.92,Director of Children's Services and Education
Retail,Grocery Stores/Supermarkets,Wm Morrisons Store,Supplies and Services related expenditure,01/10/2018,2.5,Director of Children's Services and Education
Transportation,Passenger Railways,Ticketofficesale - Swtrainsports,Transport related expenditure,01/10/2018,74.1,Director of Adult Services
Business Services,Business Services - Default,Fast Key Services Limi,Supplies and Services related expenditure,01/10/2018,3.56,"Director of Housing, Neighbourhood and Building Services"
Transportation,Passenger Railways,Ticketofficesale - Swtrainsports,Transport related expenditure,01/10/2018,12.7,Director of Regeneration
Transportation,Passenger Railways,Ticketofficesale - Swtrainsports,Transport related expenditure,01/10/2018,74.3,Director of Regeneration
Transportation,Passenger Railways,Ticketofficesale - Swtrainsports,Transport related expenditure,01/10/2018,82.8,Director of Regeneration
Facilities/Repair Supplies,Lumber/Build. Supply Stores,Days Buildbase,Premises related expenditure,01/10/2018,765.63,Director of Portsmouth International Port
Retail,Grocery Stores/Supermarkets,Tesco Store 3048,Supplies and Services related expenditure,01/10/2018,11.7,Director of Community & Communication
Retail,Grocery Stores/Supermarkets,Tesco Store 3048,Supplies and Services related expenditure,01/10/2018,11.08,Director of Community & Communication
Retail,Grocery Stores/Supermarkets,Tesco Store 3048,Supplies and Services related expenditure,01/10/2018,38.83,Director of Community & Communication
Business Expenses/Services,News Dealers/Newsstands,Wh Smith,Supplies and Services related expenditure,01/10/2018,23.8,"Director of Housing, Neighbourhood and Building Services"
Business To Business Facility/,Industrial Supplies - Def,Www.Arco.Co.Uk,Supplies and Services related expenditure,01/10/2018,13.38,"Director of Housing, Neighbourhood and Building Services"
Equipment And Furniture,Household Appliance Stores,Wilko Retail Limit,Supplies and Services related expenditure,01/10/2018,1,Director of Children's Services and Education
Equipment And Furniture,Household Appliance Stores,Wilko Retail Limit,Supplies and Services related expenditure,01/10/2018,16.21,Director of Children's Services and Education
Equipment And Furniture,Household Appliance Stores,Wilko Retail Limit,Supplies and Services related expenditure,01/10/2018,1.67,Director of Children's Services and Education
Retail,Artist/Craft Shops,Hobbycraft,Supplies and Services related expenditure,01/10/2018,67.13,Director of Children's Services and Education
Hotels And Motels,Lodging/Hotels/Motels/Resorts,Hotel On Booking.Com,Supplies and Services related expenditure,01/10/2018,150,Director of Children's Services and Education
Retail,Grocery Stores/Supermarkets,Tesco Stores 4579,Premises related expenditure,01/10/2018,2.04,Director of Children's Services and Education
Retail,Grocery Stores/Supermarkets,Iceland,Supplies and Services related expenditure,01/10/2018,2.07,Director of Children's Services and Education
Business Services,Photo Studios,Asda Max,Agency and Third Party Payments related expenditure,01/10/2018,5.5,Director of Children's Services and Education
Retail,Grocery Stores/Supermarkets,Asda Stores,Supplies and Services related expenditure,01/10/2018,3.91,Director of Children's Services and Education
Retail,Grocery Stores/Supermarkets,Asda Stores,Supplies and Services related expenditure,01/10/2018,2.5,Director of Children's Services and Education
Retail,Grocery Stores/Supermarkets,Asda Stores,Premises related expenditure,01/10/2018,4.75,Director of Children's Services and Education
Retail,Grocery Stores/Supermarkets,Asda Stores,Supplies and Services related expenditure,01/10/2018,55.68,Director of Children's Services and Education
Business Expenses/Services,Stationery Stores,Suk Retail Ltd,Supplies and Services related expenditure,01/10/2018,5.82,Director of Children's Services and Education
Retail,Grocery Stores/Supermarkets,Lidl UK Portsmouth,Supplies and Services related expenditure,01/10/2018,37.12,Director of Children's Services and Education
Retail,Grocery Stores/Supermarkets,Lidl UK Portsmouth,Supplies and Services related expenditure,01/10/2018,23.03,Director of Children's Services and Education
Facilities/Repair Supplies,Hardware Stores,Www.Toolstation.Com,Supplies and Services related expenditure,01/10/2018,16.65,Director of Children's Services and Education
Other Supplies,Combination Catalog & Retail,Whsmith.Co.Uk,Supplies and Services related expenditure,01/10/2018,22.67,Director of Children's Services and Education
Government,Govt Serv - Default,Cultural&leisure Svcs,Supplies and Services related expenditure,01/10/2018,28,Director of Children's Services and Education
Facilities/Repair Supplies,Lumber/Build. Supply Stores,Screwfix Direct,Supplies and Services related expenditure,01/10/2018,39.99,Director of Children's Services and Education
Facilities/Repair Supplies,Lumber/Build. Supply Stores,Screwfix Direct,Supplies and Services related expenditure,01/10/2018,4.17,Director of Children's Services and Education
Retail,Grocery Stores/Supermarkets,Asda Stores,Supplies and Services related expenditure,01/10/2018,3.17,Director of Children's Services and Education
Retail,Grocery Stores/Supermarkets,Asda Stores,Supplies and Services related expenditure,01/10/2018,94.58,Director of Children's Services and Education
Business To Business Facility/,Industrial Supplies - Def,The Plastic Box Company,Supplies and Services related expenditure,01/10/2018,11.96,Director of Children's Services and Education
Retail,Electronics Sales,Www.Novatech.Co.Uk,Supplies and Services related expenditure,01/10/2018,45.82,Director of Finance & IT
Other Supplies,Catalog Merchant,Www.Uk.Insight.Com,Supplies and Services related expenditure,01/10/2018,387.03,Director of Regeneration
Equipment And Furniture,Household Appliance Stores,Ebuyer (UK) Ltd,Supplies and Services related expenditure,01/10/2018,246.62,"Director of Housing, Neighbourhood and Building Services"
Hotels And Motels,Premier Travel Inns,Premier Inn44521690,Supplies and Services related expenditure,01/10/2018,87.5,"Director of Housing, Neighbourhood and Building Services"
Hotels And Motels,Premier Travel Inns,Premier Inn 44536680,Agency and Third Party Payments related expenditure,01/10/2018,85,"Director of Housing, Neighbourhood and Building Services"
Clothing/Shoes/Uniforms,Family Clothing Stores,Primark,Supplies and Services related expenditure,01/10/2018,4.5,Director of Children's Services and Education
Business To Business Facility/,Industrial Supplies - Def,Www.Arco.Co.Uk,Supplies and Services related expenditure,02/10/2018,149.22,"Director of Housing, Neighbourhood and Building Services"
Facilities/Repair Supplies,Lumber/Build. Supply Stores,Covers Portsmouth 10,Supplies and Services related expenditure,02/10/2018,141.57,Director of Children's Services and Education
Transportation,Passenger Railways,Trainline,Transport related expenditure,02/10/2018,44.24,Director of Children's Services and Education
Facilities/Repair Supplies,Lumber/Build. Supply Stores,Screwfix Direct,Supplies and Services related expenditure,02/10/2018,77.52,Director of Regeneration
Facilities/Repair Supplies,Lumber/Build. Supply Stores,Screwfix Direct,Supplies and Services related expenditure,02/10/2018,16.66,Director of Regeneration
Retail,Grocery Stores/Supermarkets,Co-Op Group 070626,Agency and Third Party Payments related expenditure,02/10/2018,3.57,Director of Children's Services and Education
Transportation,Local Commuter Transport,Hovertravel Ltd,Agency and Third Party Payments related expenditure,02/10/2018,371,Director of Children's Services and Education
Facilities/Repair Supplies,Lawn/Garden Supply/Nursery,Www.Bostonseeds.Co,Supplies and Services related expenditure,02/10/2018,560,"Director of Housing, Neighbourhood and Building Services"
Medical,Lab/Med/Hospital Equipment,Wightman & Parrish,Premises related expenditure,02/10/2018,775.39,"Director of Housing, Neighbourhood and Building Services"
Auto/Vehicle Rentals,Motor Home/Rv Rentals,Southsea Leisure Park,Agency and Third Party Payments related expenditure,02/10/2018,1306,Director of Children's Services and Education
Auto/Vehicle Rentals,Motor Home/Rv Rentals,Southsea Leisure Park,Agency and Third Party Payments related expenditure,02/10/2018,2746,Director of Children's Services and Education
Facilities/Repair Supplies,Bicycle Shops/Sales/Service,Halfords 0852,Supplies and Services related expenditure,02/10/2018,8.66,Director of Children's Services and Education
Transportation,Passenger Railways,Trainline,Transport related expenditure,02/10/2018,19.27,Director of Finance & IT
Hotels And Motels,Lodging/Hotels/Motels/Resorts,Www.Walrussocial.Com,Supplies and Services related expenditure,02/10/2018,29.17,Director of Finance & IT
Facilities Maintenance,Disinfect/Exterminate Serv,Rentokil Pest Cont,Agency and Third Party Payments related expenditure,02/10/2018,13.2,Director of Regeneration
Business Expenses/Services,Postage Stamps,The Post Office,Supplies and Services related expenditure,02/10/2018,14.13,Director of Children's Services and Education
Other Supplies,Department Stores,Southern Co-Op 0018,Supplies and Services related expenditure,02/10/2018,1.15,Director of Children's Services and Education
Miscellaneous,Fines,Combined Court Cen,Supplies and Services related expenditure,02/10/2018,308,"Director of Housing, Neighbourhood and Building Services"
Miscellaneous,Fines,Combined Court Cen,Supplies and Services related expenditure,02/10/2018,455,Director of Children's Services and Education
Miscellaneous,Fines,Combined Court Cen,Supplies and Services related expenditure,02/10/2018,2055,Director of Children's Services and Education
Retail,Shoe Repair/Shine/Hat Clean,Timpson Ltd,Supplies and Services related expenditure,02/10/2018,8.33,"Director of Culture, Leisure & Regulatory Services"
Business Services,Business Services - Default,Fast Key Services Limi,Supplies and Services related expenditure,02/10/2018,11.03,"Director of Culture, Leisure & Regulatory Services"
Equipment And Furniture,Household Appliance Stores,Wilko Retail Limit,Supplies and Services related expenditure,02/10/2018,25.33,"Director of Culture, Leisure & Regulatory Services"
Transportation,"Parking Lots, Meters, Garages",3c_*portsmouth City Co,Transport related expenditure,02/10/2018,2.17,Director of Children's Services and Education
Facilities/Repair Supplies,Hardware Stores,Www.Toolstation.Com,Premises related expenditure,02/10/2018,24.22,Director of Children's Services and Education
Facilities/Repair Services,Gen Contractors Residentl/Coml,Crown Decorating Centr,Premises related expenditure,02/10/2018,45.62,Director of Children's Services and Education
Retail,Grocery Stores/Supermarkets,Aldi 775 145,Supplies and Services related expenditure,02/10/2018,45.84,Director of Adult Services
Retail,Sporting Goods Stores,Sportsdirect.Com,Supplies and Services related expenditure,02/10/2018,33.99,Director of Children's Services and Education
Equipment And Furniture,Phone Serv/Equip Non-Util,O2 Mbb,Supplies and Services related expenditure,02/10/2018,10,Director of Community & Communication
Government,Schools - Default,Pearson Ed Ltd,Supplies and Services related expenditure,02/10/2018,152.13,Director of Children's Services and Education
Government,Schools - Default,Pearson Ed Ltd,Supplies and Services related expenditure,02/10/2018,152.13,Director of Children's Services and Education
Hotels And Motels,Travelodge,Travelodge Gb0000,Agency and Third Party Payments related expenditure,02/10/2018,136.5,"Director of Housing, Neighbourhood and Building Services"
Hotels And Motels,Travelodge,Travelodge Gb0000,Agency and Third Party Payments related expenditure,02/10/2018,573.33,"Director of Housing, Neighbourhood and Building Services"
Retail,Grocery Stores/Supermarkets,Southern Co-Op 0129,Supplies and Services related expenditure,02/10/2018,2.3,Director of Children's Services and Education
Transportation,"Parking Lots, Meters, Garages",3c_*portsmouth City Co,Transport related expenditure,02/10/2018,2.17,Director of Children's Services and Education
Other Supplies,Department Stores,Southern Co-Op 0214,Supplies and Services related expenditure,02/10/2018,1.67,Director of Children's Services and Education
Other Supplies,Department Stores,Southern Co-Op 0214,Supplies and Services related expenditure,02/10/2018,1,Director of Children's Services and Education
Retail,Grocery Stores/Supermarkets,Iceland,Supplies and Services related expenditure,02/10/2018,24.23,Director of Children's Services and Education
Other Supplies,Discount Stores,Argos Ltd,Agency and Third Party Payments related expenditure,02/10/2018,33.33,Director of Children's Services and Education
Other Supplies,Discount Stores,Argos Ltd,Agency and Third Party Payments related expenditure,02/10/2018,33.33,Director of Children's Services and Education
Retail,Sporting Goods Stores,Sportsdirect 219,Agency and Third Party Payments related expenditure,02/10/2018,81.49,Director of Children's Services and Education
Automobile Services & Supplies,Service Stations,Rontec,Supplies and Services related expenditure,02/10/2018,0.5,Director of Children's Services and Education
Eating And Drinking Places,Fast Food Restaurants,Costa Coffee 43042195,Supplies and Services related expenditure,02/10/2018,6.71,Director of Children's Services and Education
Eating And Drinking Places,Fast Food Restaurants,Costa Coffee 43042195,Supplies and Services related expenditure,02/10/2018,3.25,Director of Children's Services and Education
Business To Business Eqpt/Furn,Book Stores,Amzn Mktp Uk,Supplies and Services related expenditure,02/10/2018,19.97,"Director of Housing, Neighbourhood and Building Services"
Business To Business Eqpt/Furn,Computer Software Stores,Pcc Inv3176334,Supplies and Services related expenditure,02/10/2018,2899,"Director of Housing, Neighbourhood and Building Services"
Facilities/Repair Supplies,Lumber/Build. Supply Stores,B & Q 1260,Transport related expenditure,02/10/2018,4.95,Director of Adult Services
Business Services,Advertising Services,Facebk Lgtfhh28z2,Supplies and Services related expenditure,02/10/2018,2.23,Director of Community & Communication
Business Services,Advertising Services,Facebk Ggtfhh28z2,Supplies and Services related expenditure,02/10/2018,147.77,Director of Community & Communication
Eating And Drinking Places,Fast Food Restaurants,McDonalds,Agency and Third Party Payments related expenditure,02/10/2018,5.68,Director of Children's Services and Education
Hotels And Motels,Travelodge,Travelodge Gb0000,Supplies and Services related expenditure,02/10/2018,47.5,Director of Children's Services and Education
Hotels And Motels,Lodging/Hotels/Motels/Resorts,Airbnb,Supplies and Services related expenditure,02/10/2018,97.81,Director of Children's Services and Education
Retail,Grocery Stores/Supermarkets,Asda Stores,Supplies and Services related expenditure,02/10/2018,15.26,Director of Children's Services and Education
Retail,Grocery Stores/Supermarkets,Asda Stores,Supplies and Services related expenditure,02/10/2018,40.38,Director of Children's Services and Education
Retail,Hobby/Toy/Game Stores,Wp-Sensetoys Limit,Supplies and Services related expenditure,02/10/2018,15.4,Director of Adult Services
Retail,Hobby/Toy/Game Stores,Wp-Sensetoys Limit,Supplies and Services related expenditure,02/10/2018,4.95,Director of Adult Services
Transportation,"Parking Lots, Meters, Garages",Total Parking Solution,Supplies and Services related expenditure,02/10/2018,2.5,Director of Children's Services and Education
Other Supplies,Department Stores,Southern Co-Op 0018,Supplies and Services related expenditure,02/10/2018,6.85,Director of Children's Services and Education
Government,Govt Serv - Default,Hampshire County Counc,Premises related expenditure,02/10/2018,145,"Director of Housing, Neighbourhood and Building Services"
Automobile Services & Supplies,Service Stations,Shell Fratton 178,Transport related expenditure,02/10/2018,14.28,"Director of Housing, Neighbourhood and Building Services"
Business To Business Services,Misc Publishing & Printing,Magazine.Co.Uk,Supplies and Services related expenditure,02/10/2018,239.21,Director of Children's Services and Education
Retail,Grocery Stores/Supermarkets,Asda Stores,Premises related expenditure,02/10/2018,1.67,"Director of Housing, Neighbourhood and Building Services"
Retail,Grocery Stores/Supermarkets,Asda Superstore,Supplies and Services related expenditure,02/10/2018,3.27,Director of Adult Services
Retail,Grocery Stores/Supermarkets,Lidl UK Fareham,Supplies and Services related expenditure,02/10/2018,3.33,Director of Adult Services
Entertainment,Bands/Orchestras/Entertain,Pyramids Centre,Supplies and Services related expenditure,02/10/2018,8.1,Director of Adult Services
Medical,Lab/Med/Hospital Equipment,Wightman & Parrish,Supplies and Services related expenditure,02/10/2018,67.6,Director of Adult Services
Medical,Lab/Med/Hospital Equipment,Wightman & Parrish,Supplies and Services related expenditure,02/10/2018,64.73,Director of Adult Services
Medical,Lab/Med/Hospital Equipment,Wightman & Parrish,Supplies and Services related expenditure,02/10/2018,19.95,Director of Adult Services
Medical,Lab/Med/Hospital Equipment,Wightman & Parrish,Supplies and Services related expenditure,02/10/2018,19.99,Director of Adult Services
Medical,Lab/Med/Hospital Equipment,Wightman & Parrish,Premises related expenditure,02/10/2018,99.6,Director of Adult Services
Facilities/Repair Supplies,Home Supply Warehouse Stores,Taps And Sinks Online L,Premises related expenditure,02/10/2018,27.08,Director of Portsmouth International Port
Retail,Fabric Stores,Hampshirefl,Premises related expenditure,02/10/2018,62.94,Director of Portsmouth International Port
Retail,Grocery Stores/Supermarkets,Tesco Stores 4579,Supplies and Services related expenditure,02/10/2018,0.83,Director of Adult Services
Retail,Grocery Stores/Supermarkets,Tesco Stores 4579,Supplies and Services related expenditure,02/10/2018,8.2,Director of Adult Services
Business Expenses/Services,Postage Stamps,Post Office Counter,Supplies and Services related expenditure,02/10/2018,13.92,Director of Children's Services and Education
Other Supplies,Department Stores,Southern Co-Op 0018,Supplies and Services related expenditure,02/10/2018,3.28,Director of Children's Services and Education
Other Supplies,Department Stores,Southern Co-Op 0018,Supplies and Services related expenditure,02/10/2018,2.7,Director of Children's Services and Education
Retail,Grocery Stores/Supermarkets,Iceland,Supplies and Services related expenditure,02/10/2018,3,Director of Children's Services and Education
Retail,Drug Stores & Pharmacies,"Boots,1022",Supplies and Services related expenditure,02/10/2018,6.72,Director of Children's Services and Education
Other Supplies,Department Stores,Southern Co-Op 0007,Supplies and Services related expenditure,02/10/2018,1.16,Director of Children's Services and Education
Automobile Services & Supplies,Service Stations,Asda Petrol 4583,Transport related expenditure,02/10/2018,33.69,"Director of Housing, Neighbourhood and Building Services"
Auto/Vehicle Rentals,Enterprise Rent-A-Car,Enterprise,Supplies and Services related expenditure,02/10/2018,74.25,Director of Children's Services and Education
Hotels And Motels,Lodging/Hotels/Motels/Resorts,Hotel On Booking.Com,Supplies and Services related expenditure,02/10/2018,78.75,Director of Children's Services and Education
Transportation,"Parking Lots, Meters, Garages",Ncp Ltd,Transport related expenditure,02/10/2018,1.67,Director of Children's Services and Education
Retail,Sporting Goods Stores,Footasylum,Supplies and Services related expenditure,02/10/2018,6.66,Director of Children's Services and Education
Entertainment,Bowling Alleys,Amfbowling.Co.Uk,Agency and Third Party Payments related expenditure,02/10/2018,66.35,Director of Children's Services and Education
Business To Business Eqpt/Furn,Book Stores,Amzn Mktp Uk,Supplies and Services related expenditure,02/10/2018,13.14,Director of Children's Services and Education
Business To Business Eqpt/Furn,Book Stores,Amzn Mktp Uk,Supplies and Services related expenditure,02/10/2018,22.59,Director of Children's Services and Education
Transportation,Local Commuter Transport,Hovertravel Ltd,Transport related expenditure,02/10/2018,23.9,Director of Children's Services and Education
Business To Business Eqpt/Furn,Book Stores,Amzn Mktp Uk,Supplies and Services related expenditure,02/10/2018,35.9,Director of Children's Services and Education
Business To Business Eqpt/Furn,Book Stores,Amzn Mktp Uk,Supplies and Services related expenditure,02/10/2018,58.17,Director of Children's Services and Education
Business To Business Eqpt/Furn,Book Stores,Amzn Mktp Uk,Supplies and Services related expenditure,02/10/2018,83.33,Director of Children's Services and Education
Transportation,Passenger Railways,Sw Railway,Transport related expenditure,02/10/2018,-114.5,Director of Children's Services and Education
Government,Govt Serv - Default,Portsmouth City Co,Transport related expenditure,02/10/2018,10.25,Chief Exec
Business To Business Other Sup,Uniforms & Commercial Clothing,Arco Ltd,Supplies and Services related expenditure,02/10/2018,41.72,"Director of Housing, Neighbourhood and Building Services"
Business To Business Eqpt/Furn,Book Stores,Amzn Mktp Uk,Supplies and Services related expenditure,02/10/2018,1.92,"Director of Housing, Neighbourhood and Building Services"
Business To Business Eqpt/Furn,Book Stores,Amzn Mktp Uk,Supplies and Services related expenditure,02/10/2018,22.24,"Director of Housing, Neighbourhood and Building Services"
Facilities/Repair Supplies,Hardware Stores,Toolstation Ltd,Premises related expenditure,02/10/2018,198.81,"Director of Housing, Neighbourhood and Building Services"
Entertainment,Bands/Orchestras/Entertain,Bh Live Active - Mount,Supplies and Services related expenditure,02/10/2018,7.75,Director of Children's Services and Education
Retail,Grocery Stores/Supermarkets,Tesco Stores 4579,Supplies and Services related expenditure,02/10/2018,10,Director of Adult Services
Automobile Services & Supplies,Service Stations,Shell Fratton 178,Transport related expenditure,02/10/2018,19.69,Director of Adult Services
Transportation,"Parking Lots, Meters, Garages",Ncp Limited,Supplies and Services related expenditure,02/10/2018,3.33,Director of Adult Services
Medical,Lab/Med/Hospital Equipment,Wightman & Parrish,Premises related expenditure,02/10/2018,85.08,Director of Regeneration
Business Expenses/Services,Postage Stamps,The Post Office,Supplies and Services related expenditure,02/10/2018,5.31,Director of Children's Services and Education
Business To Business Eqpt/Furn,Book Stores,Amzn Mktp Uk,Supplies and Services related expenditure,02/10/2018,13.32,Director of Children's Services and Education
Medical,Lab/Med/Hospital Equipment,Wightman & Parrish,Supplies and Services related expenditure,02/10/2018,144.21,Director of Regeneration
Government,Govt Serv - Default,Www.Moneyclaim.Gov,Supplies and Services related expenditure,02/10/2018,70,Director of Community & Communication
Other Supplies,Discount Stores,Argos Retail Group,Supplies and Services related expenditure,02/10/2018,28.99,Director of Children's Services and Education
Business To Business Facility/,Industrial Supplies - Def,Www.Arco.Co.Uk,Supplies and Services related expenditure,02/10/2018,162.28,Capital - Environment
Hotels And Motels,Travelodge,Travelodge Gb0000,Agency and Third Party Payments related expenditure,02/10/2018,-168.5,"Director of Housing, Neighbourhood and Building Services"
Utilities,Utilities/Elec/Gas/H2O/Sani,Ovo Energy,Premises related expenditure,02/10/2018,5,"Director of Housing, Neighbourhood and Building Services"
Business To Business Other Sup,Uniforms & Commercial Clothing,Arco Ltd,Supplies and Services related expenditure,02/10/2018,20.98,Director of Children's Services and Education
Business To Business Eqpt/Furn,Book Stores,Amzn Mktp Uk,Supplies and Services related expenditure,02/10/2018,24.96,Director of Children's Services and Education
Government,Govt Serv - Default,Gro Hm Passport Office,Supplies and Services related expenditure,02/10/2018,9.25,Director of Children's Services and Education
Transportation,Passenger Railways,Trainline,Supplies and Services related expenditure,02/10/2018,57.87,Director of Portsmouth International Port
Transportation,Passenger Railways,Trainline,Supplies and Services related expenditure,02/10/2018,57.87,Director of Portsmouth International Port
Transportation,Passenger Railways,Trainline,Transport related expenditure,02/10/2018,56.7,Director of Children's Services and Education
Business To Business Facility/,Hardware Equipment/Supplies,Croma Locksmiths & Sec,Premises related expenditure,02/10/2018,15.14,"Director of Culture, Leisure & Regulatory Services"
Automobile Services & Supplies,Service Stations,Tesco Pfs 4274,Premises related expenditure,02/10/2018,83.38,"Director of Culture, Leisure & Regulatory Services"
Business To Business Facility/,Hardware Equipment/Supplies,Croma Locksmiths & Sec,Premises related expenditure,02/10/2018,94.5,"Director of Culture, Leisure & Regulatory Services"
Business To Business Facility/,Industrial Supplies - Def,Arco Ltd,Supplies and Services related expenditure,02/10/2018,32.24,"Director of Housing, Neighbourhood and Building Services"
Transportation,Local Commuter Transport,Hovertravel Ltd,Transport related expenditure,02/10/2018,19.12,Director of Children's Services and Education
Automobile Services & Supplies,Service Stations,Malthurst Petroleu,Transport related expenditure,02/10/2018,71.73,Director of Adult Services
Business To Business Facility/,Industrial Supplies - Def,Arco Ltd,Premises related expenditure,02/10/2018,24.58,"Director of Culture, Leisure & Regulatory Services"
Business To Business Facility/,Industrial Supplies - Def,Arco Ltd,Premises related expenditure,02/10/2018,-172.5,"Director of Culture, Leisure & Regulatory Services"
Business To Business Facility/,Industrial Supplies - Def,Arco Ltd,Premises related expenditure,02/10/2018,257.96,"Director of Culture, Leisure & Regulatory Services"
Transportation,Passenger Railways,Ticketofficesale - Swtrainsports,Transport related expenditure,02/10/2018,143.1,"Director of Housing, Neighbourhood and Building Services"
Miscellaneous,Elementary/Secondary School,Paypal,Supplies and Services related expenditure,02/10/2018,100,Director of Children's Services and Education
Retail,Grocery Stores/Supermarkets,Tesco Stores 3055,Supplies and Services related expenditure,02/10/2018,10.83,"Director of Housing, Neighbourhood and Building Services"
Transportation,Passenger Railways,Ticketofficesale - Swtrainsports,Transport related expenditure,02/10/2018,80.3,Director of Adult Services
Facilities/Repair Supplies,Lumber/Build. Supply Stores,B & Q 1260,Premises related expenditure,02/10/2018,25.69,Director of Children's Services and Education
Transportation,Local Commuter Transport,Www.Wightlink.Co.Uk,Transport related expenditure,02/10/2018,19.8,Solent LEP
Business To Business Eqpt/Furn,Computer Software Stores,Ivo Group Ltd,Supplies and Services related expenditure,02/10/2018,3899,"Director of Housing, Neighbourhood and Building Services"
Retail,Grocery Stores/Supermarkets,Sainsburys S/mkts,Supplies and Services related expenditure,02/10/2018,5.05,"Director of Culture, Leisure & Regulatory Services"
Government,Govt Serv - Default,Portsmouth City Co,Transport related expenditure,02/10/2018,63.33,Director of Children's Services and Education
Government,Govt Serv - Default,Portsmouth City Co,Transport related expenditure,02/10/2018,63.33,Director of Children's Services and Education
Eating And Drinking Places,Fast Food Restaurants,Starbucks,Supplies and Services related expenditure,02/10/2018,3.75,Director of Children's Services and Education
Eating And Drinking Places,Fast Food Restaurants,Starbucks,Supplies and Services related expenditure,02/10/2018,4.63,Director of Children's Services and Education
Other Supplies,Gift/Card/Novelty And Souvenir Stores,The Royal Naval Museum,Supplies and Services related expenditure,02/10/2018,10.78,Director of Children's Services and Education
Other Supplies,Gift/Card/Novelty And Souvenir Stores,The Royal Naval Museum,Supplies and Services related expenditure,02/10/2018,10.77,Director of Children's Services and Education
Business Expenses/Services,Postage Stamps,Post Office Counter,Supplies and Services related expenditure,02/10/2018,1.1,"Director of Housing, Neighbourhood and Building Services"
Miscellaneous,Fines,Combined Court Cen,Supplies and Services related expenditure,02/10/2018,121,"Director of Housing, Neighbourhood and Building Services"
Professional Services,Professional Services - Def,Www.Tes.Com,Supplies and Services related expenditure,02/10/2018,7.5,Director of Children's Services and Education
Facilities/Repair Supplies,Automotive Parts Stores,Ecp 046 Portsmouth,Transport related expenditure,02/10/2018,17.72,"Director of Culture, Leisure & Regulatory Services"
Facilities/Repair Supplies,Automotive Parts Stores,Ecp 046 Portsmouth,Transport related expenditure,02/10/2018,23.68,"Director of Culture, Leisure & Regulatory Services"
Equipment And Furniture,Household Appliance Stores,Wilko Retail Limit,Supplies and Services related expenditure,02/10/2018,50.35,Director of Children's Services and Education
Business Expenses/Services,News Dealers/Newsstands,Wh Smith,Supplies and Services related expenditure,02/10/2018,16.5,"Director of Housing, Neighbourhood and Building Services"
Hotels And Motels,Hotel Ibis,Hotel Ibis,Supplies and Services related expenditure,02/10/2018,49.08,Director of Finance & IT
Business To Business Facility/,Industrial Supplies - Def,Www.Arco.Co.Uk,Supplies and Services related expenditure,02/10/2018,62.83,"Director of Housing, Neighbourhood and Building Services"
Retail,Grocery Stores/Supermarkets,Tesco Store 3048,Supplies and Services related expenditure,02/10/2018,3.02,Director of Adult Services
Entertainment,Bands/Orchestras/Entertain,Bh Live Active - Mount,Supplies and Services related expenditure,02/10/2018,6,Director of Adult Services
Retail,Artist/Craft Shops,Www.Buttons.Co.Uk,Supplies and Services related expenditure,02/10/2018,36.5,Director of Children's Services and Education
Retail,Grocery Stores/Supermarkets,Sainsburys S/mkts,Supplies and Services related expenditure,02/10/2018,0.54,Director of Children's Services and Education
Retail,Grocery Stores/Supermarkets,Sainsburys S/mkts,Supplies and Services related expenditure,02/10/2018,1.15,Director of Children's Services and Education
Transportation,Passenger Railways,Selfserve Ticket,Transport related expenditure,02/10/2018,18.8,Director of Children's Services and Education
Business To Business Eqpt/Furn,Book Stores,Amzn Mktp Uk,Supplies and Services related expenditure,02/10/2018,7.35,Director of Children's Services and Education
Business To Business Eqpt/Furn,Book Stores,Amzn Mktp Uk,Supplies and Services related expenditure,02/10/2018,15.05,Director of Adult Services
Government,Govt Serv - Default,Disclosure And Barring,Supplies and Services related expenditure,02/10/2018,25,Director of Children's Services and Education
Transportation,Passenger Railways,Ticketofficesale - Swtrainsports,Transport related expenditure,02/10/2018,74.3,Director of Adult Services
Retail,Grocery Stores/Supermarkets,Wm Morrisons Store,Supplies and Services related expenditure,02/10/2018,14.93,Director of Children's Services and Education
Other Supplies,Gift/Card/Novelty And Souvenir Stores,Www.Kidspartytime.Co.U,Capital related expenditure,02/10/2018,144,Director of Regeneration
Government,Govt Serv - Default,Www.Moneyclaim.Gov,Supplies and Services related expenditure,02/10/2018,185,Director of Community & Communication
Facilities/Repair Supplies,Lumber/Build. Supply Stores,B & Q 1260,Premises related expenditure,02/10/2018,96.49,Director of Children's Services and Education
Retail,Grocery Stores/Supermarkets,Asda Stores,Supplies and Services related expenditure,02/10/2018,17.5,Director of Children's Services and Education
Equipment And Furniture,Household Appliance Stores,Wilko Retail Limit,Supplies and Services related expenditure,02/10/2018,25.04,Director of Children's Services and Education
Transportation,"Parking Lots, Meters, Garages",Lb Croydon Parking,Transport related expenditure,02/10/2018,1.5,Director of Children's Services and Education
Retail,Grocery Stores/Supermarkets,Continental Supermarket,Supplies and Services related expenditure,02/10/2018,8.33,Director of Children's Services and Education
Eating And Drinking Places,Eating Places/Restaurants,Pizza Hut 398,Supplies and Services related expenditure,02/10/2018,15,Director of Children's Services and Education
Facilities/Repair Supplies,Home Supply Warehouse Stores,Ms Good Deals Ltd,Supplies and Services related expenditure,02/10/2018,16.65,Director of Children's Services and Education
Facilities/Repair Supplies,Home Supply Warehouse Stores,Ms Good Deals Ltd,Supplies and Services related expenditure,02/10/2018,24.99,Director of Children's Services and Education
Government,Govt Serv - Default,2maa006843012 Td E-Pmt,Supplies and Services related expenditure,02/10/2018,62.5,Director of Children's Services and Education
Transportation,Passenger Railways,Ticketofficesale - Swtrainsports,Transport related expenditure,02/10/2018,89.8,Director of Regeneration
Miscellaneous,Member Organizations - Def,Rics Com Gbp Cybs,Employees related expenditure,02/10/2018,160,Director of Regeneration
Miscellaneous,Member Organizations - Def,Rics Com Gbp Cybs,Employees related expenditure,02/10/2018,499,Director of Regeneration
Miscellaneous,Other Direct Marketers,Amazon.Co.Uk,Supplies and Services related expenditure,02/10/2018,7.33,Director of Children's Services and Education
Transportation,Passenger Railways,Sw Railway,Transport related expenditure,02/10/2018,10.5,Director of Children's Services and Education
Business To Business Facility/,Industrial Supplies - Def,The Plastic Box Company,Supplies and Services related expenditure,02/10/2018,16.16,Director of Children's Services and Education
Business To Business Eqpt/Furn,Book Stores,Amzn Mktp Uk,Supplies and Services related expenditure,02/10/2018,39.98,Director of Children's Services and Education
Business To Business Eqpt/Furn,Book Stores,Amzn Mktp Uk,Supplies and Services related expenditure,02/10/2018,95.33,Director of Children's Services and Education
Miscellaneous,Misc Personal Serv - Def,Fsprg.Uk,Supplies and Services related expenditure,02/10/2018,81.48,Director of Children's Services and Education
Business To Business Eqpt/Furn,Book Stores,Amzn Mktp Uk,Capital related expenditure,02/10/2018,71.99,Capital - Resources
Entertainment,Tourist Attractions And Xhbt,Www.Spinnakertower.Co.,Supplies and Services related expenditure,02/10/2018,102.08,Director of Finance & IT
Retail,Grocery Stores/Supermarkets,Www.Iceland.Co.Uk,Supplies and Services related expenditure,02/10/2018,78.75,Director of Adult Services
Hotels And Motels,Lodging/Hotels/Motels/Resorts,The Royal Maritime Clu,Supplies and Services related expenditure,02/10/2018,37.5,"Director of Housing, Neighbourhood and Building Services"
Other Supplies,Gift/Card/Novelty And Souvenir Stores,The Royal Naval Museum,Agency and Third Party Payments related expenditure,02/10/2018,41.33,Director of Children's Services and Education
Business Expenses/Services,Stationery Stores,Banner Group Ltd,Supplies and Services related expenditure,01/10/2018,8.77,"Director of Housing, Neighbourhood and Building Services"
Business Expenses/Services,Stationery Stores,Banner Group Ltd,Supplies and Services related expenditure,01/10/2018,51.31,"Director of Housing, Neighbourhood and Building Services"
Utilities,Cable/Pay Tv Services,Sky Subscription,Supplies and Services related expenditure,01/10/2018,83.84,Director of Adult Services
Business Expenses/Services,Stationery Stores,Banner Group Ltd,Supplies and Services related expenditure,01/10/2018,39.71,"Director of Housing, Neighbourhood and Building Services"
Business Expenses/Services,Stationery Stores,Banner Group Ltd,Supplies and Services related expenditure,01/10/2018,59.56,"Director of Housing, Neighbourhood and Building Services"
Business Expenses/Services,Stationery Stores,Banner Group Ltd,Supplies and Services related expenditure,01/10/2018,34,Director of Adult Services
Business Expenses/Services,Stationery Stores,Banner Group Ltd,Supplies and Services related expenditure,01/10/2018,27.28,Director of Regeneration
Business Expenses/Services,Stationery Stores,Banner Group Ltd,Supplies and Services related expenditure,01/10/2018,27.28,Director of Regeneration
Government,Govt Serv - Default,Dvla Dup Reg Doc,Transport related expenditure,02/10/2018,25,"Director of Housing, Neighbourhood and Building Services"
Clothing/Shoes/Uniforms,Family Clothing Stores,Primark,Supplies and Services related expenditure,02/10/2018,32,Director of Children's Services and Education
Facilities/Repair Supplies,Lumber/Build. Supply Stores,Jewsons,Capital related expenditure,02/10/2018,12.02,Capital - PRED (Excl. Port & Solent LEP)
Government,Govt Serv - Default,Disclosure & Barring,Supplies and Services related expenditure,02/10/2018,13,Director of Children's Services and Education
Government,Govt Serv - Default,Disclosure & Barring,Supplies and Services related expenditure,02/10/2018,13,Director of Children's Services and Education
Government,Govt Serv - Default,Disclosure & Barring,Supplies and Services related expenditure,02/10/2018,13,Director of Children's Services and Education
Government,Govt Serv - Default,Disclosure & Barring,Supplies and Services related expenditure,02/10/2018,13,Director of Children's Services and Education
Other Supplies,Misc Speciality Retail,Amazon.Co.Uk Amazon.Co.Uk,Supplies and Services related expenditure,02/10/2018,13.93,Director of Children's Services and Education
Business To Business Eqpt/Furn,Book Stores,Amzn Mktp UK Amazon.Co.Uk,Capital related expenditure,02/10/2018,63.33,Capital - Resources
Professional Services,Mgmt/Consult/Public Rel Ser,Tvlicensing.Co.Uk,Supplies and Services related expenditure,02/10/2018,150.5,Director of Adult Services
Transportation,Passenger Railways,Ticketofficesale - Swtrains Frat,Transport related expenditure,03/10/2018,12.7,Director of Public Health
Facilities/Repair Supplies,Lumber/Build. Supply Stores,City Electrical Fa,Supplies and Services related expenditure,03/10/2018,23.52,Director of Adult Services
Government,Govt Serv - Default,Portsmouth City Co,Agency and Third Party Payments related expenditure,03/10/2018,31.67,Director of Children's Services and Education
Utilities,Utilities/Elec/Gas/H2O/Sani,Southern Electric,Agency and Third Party Payments related expenditure,03/10/2018,142.17,Director of Children's Services and Education
Business To Business Facility/,Industrial Supplies - Def,Www.Arco.Co.Uk,Supplies and Services related expenditure,03/10/2018,4.87,"Director of Housing, Neighbourhood and Building Services"
Medical,Lab/Med/Hospital Equipment,Wightman & Parrish,Premises related expenditure,03/10/2018,90.96,"Director of Housing, Neighbourhood and Building Services"
Eating And Drinking Places,Eating Places/Restaurants,Subway Ocean Park,Supplies and Services related expenditure,03/10/2018,1.66,Director of Children's Services and Education
Eating And Drinking Places,Eating Places/Restaurants,Starbucks Burrfields Road,Supplies and Services related expenditure,03/10/2018,4.8,Director of Children's Services and Education
Eating And Drinking Places,Eating Places/Restaurants,Starbucks Burrfields Road,Supplies and Services related expenditure,03/10/2018,0.04,Director of Children's Services and Education
Entertainment,Public Golf Courses,Chichester Golf,Supplies and Services related expenditure,03/10/2018,12.92,Director of Children's Services and Education
Transportation,Passenger Railways,Selfserve Ticket,Supplies and Services related expenditure,03/10/2018,41.5,"Director of Culture, Leisure & Regulatory Services"
Transportation,Passenger Railways,Trainline,Transport related expenditure,03/10/2018,23.95,"Director of Housing, Neighbourhood and Building Services"
Caterers Food,Caterers,Bookerecomm,Supplies and Services related expenditure,03/10/2018,283.07,"Director of Housing, Neighbourhood and Building Services"
Caterers Food,Caterers,Bookerecomm,Supplies and Services related expenditure,03/10/2018,2.29,"Director of Housing, Neighbourhood and Building Services"
Government,Govt Serv - Default,Hm Passport Office,Supplies and Services related expenditure,03/10/2018,54,Director of Children's Services and Education
Medical,Lab/Med/Hospital Equipment,Wightman & Parrish Ltd,Premises related expenditure,03/10/2018,102.7,"Director of Housing, Neighbourhood and Building Services"
Business To Business Eqpt/Furn,Book Stores,Amzn Mktp Uk,Supplies and Services related expenditure,03/10/2018,97.22,Director of Adult Services
Business To Business Eqpt/Furn,Book Stores,Amzn Mktp Uk,Supplies and Services related expenditure,03/10/2018,23.33,Director of Adult Services
Government,Govt Serv - Default,Portsmouth City Co,Transport related expenditure,03/10/2018,31.67,Director of Children's Services and Education
Miscellaneous,Veterinary Service,Sanctuary Vets - Farli,Supplies and Services related expenditure,03/10/2018,213.15,"Director of Culture, Leisure & Regulatory Services"
Auto/Vehicle Dealers,Misc Auto Dealers - Default,Power Precision And Fa,Transport related expenditure,03/10/2018,281.53,"Director of Culture, Leisure & Regulatory Services"
Facilities/Repair Supplies,Lawn/Garden Supply/Nursery,Carters Of Swanwic,Supplies and Services related expenditure,03/10/2018,31.5,"Director of Housing, Neighbourhood and Building Services"
Transportation,"Parking Lots, Meters, Garages",3c_*portsmouth City Co,Transport related expenditure,03/10/2018,2.92,Director of Children's Services and Education
Retail,Grocery Stores/Supermarkets,Tesco Stores 3055,Premises related expenditure,03/10/2018,2.5,Director of Adult Services
Retail,Grocery Stores/Supermarkets,Tesco Stores 3055,Supplies and Services related expenditure,03/10/2018,10.42,Director of Adult Services
Retail,Grocery Stores/Supermarkets,Tesco Stores 3055,Supplies and Services related expenditure,03/10/2018,35.29,Director of Adult Services
Transportation,Passenger Railways,Selfserve Ticket,Transport related expenditure,03/10/2018,3.42,Director of Children's Services and Education
Retail,Grocery Stores/Supermarkets,Tesco Stores 4579,Supplies and Services related expenditure,03/10/2018,2.5,Director of Children's Services and Education
Retail,Grocery Stores/Supermarkets,Tesco Stores 4579,Supplies and Services related expenditure,03/10/2018,0.08,Director of Children's Services and Education
Retail,Grocery Stores/Supermarkets,Tesco Stores 4579,Supplies and Services related expenditure,03/10/2018,1.92,Director of Children's Services and Education
Retail,Grocery Stores/Supermarkets,Tesco Stores 4579,Supplies and Services related expenditure,03/10/2018,26.31,Director of Children's Services and Education
Government,Govt Serv - Default,Portsmouth City Co,Transport related expenditure,03/10/2018,31.67,"Director of Housing, Neighbourhood and Building Services"
Transportation,Passenger Railways,Cross Country Trains,Transport related expenditure,03/10/2018,83.4,Director of Children's Services and Education
Transportation,Passenger Railways,Cross Country Trains,Transport related expenditure,03/10/2018,87.7,Director of Children's Services and Education
Transportation,Travel Agencies,Travel Republic Ltd,Supplies and Services related expenditure,03/10/2018,108,Director of Children's Services and Education
Transportation,"Parking Lots, Meters, Garages",Http://Www.Southampton,Transport related expenditure,03/10/2018,40.42,"Director of Housing, Neighbourhood and Building Services"
Business To Business Facility/,Industrial Supplies - Def,Www.Arco.Co.Uk,Supplies and Services related expenditure,03/10/2018,92.4,"Director of Housing, Neighbourhood and Building Services"
Transportation,Passenger Railways,Ticketofficesale - Swtrainsports,Transport related expenditure,03/10/2018,160.6,"Director of HR, Legal,  Audit & Performance"
Other Supplies,Department Stores,The Range,Supplies and Services related expenditure,03/10/2018,1.99,Director of Children's Services and Education
Eating And Drinking Places,Eating Places/Restaurants,Greggs Plc,Supplies and Services related expenditure,03/10/2018,2.29,Director of Children's Services and Education
Eating And Drinking Places,Eating Places/Restaurants,Greggs Plc,Supplies and Services related expenditure,03/10/2018,3.33,Director of Children's Services and Education
Other Supplies,Misc Speciality Retail,Amazon.Co.Uk Amazon.Co.Uk,Supplies and Services related expenditure,03/10/2018,14.98,Director of Children's Services and Education
Transportation,Passenger Railways,Trainline,Supplies and Services related expenditure,03/10/2018,29.28,Director of Children's Services and Education
Other Supplies,Misc Speciality Retail,Amazon.Co.Uk Amazon.Co.Uk,Supplies and Services related expenditure,03/10/2018,60.1,Director of Children's Services and Education
Hotels And Motels,Travelodge,Travelodge Gb0000,Supplies and Services related expenditure,03/10/2018,110,Director of Children's Services and Education
Government,Govt Serv - Default,Portsmouth City Co,Transport related expenditure,03/10/2018,63.33,Director of Adult Services
Transportation,Passenger Railways,Selfserve Ticket,Transport related expenditure,03/10/2018,10.7,"Director of Housing, Neighbourhood and Building Services"
Hotels And Motels,Travelodge,Travelodge Gb0000,Agency and Third Party Payments related expenditure,03/10/2018,63,"Director of Housing, Neighbourhood and Building Services"
Hotels And Motels,Travelodge,Travelodge Gb0000,Agency and Third Party Payments related expenditure,03/10/2018,550,"Director of Housing, Neighbourhood and Building Services"
Hotels And Motels,Travelodge,Travelodge Gb0000,Agency and Third Party Payments related expenditure,03/10/2018,895.83,"Director of Housing, Neighbourhood and Building Services"
Retail,Electronics Sales,Pp*game Over Cafe,Supplies and Services related expenditure,03/10/2018,10.4,Director of Children's Services and Education
Other Supplies,Department Stores,Southern Co-Op 0018,Supplies and Services related expenditure,03/10/2018,1.13,Director of Children's Services and Education
Other Supplies,Department Stores,Southern Co-Op 0018,Supplies and Services related expenditure,03/10/2018,10.1,Director of Children's Services and Education
Transportation,Passenger Railways,Ticketofficesale - Swtrainsports,Transport related expenditure,03/10/2018,51.4,Director of Children's Services and Education
Facilities/Repair Supplies,Lawn/Garden Supply/Nursery,M & S Enterprises,Supplies and Services related expenditure,03/10/2018,630.12,"Director of Housing, Neighbourhood and Building Services"
Business To Business Eqpt/Furn,Book Stores,Book People Voucher,Supplies and Services related expenditure,03/10/2018,56,Director of Children's Services and Education
Eating And Drinking Places,Fast Food Restaurants,Buckland United Reform,Premises related expenditure,03/10/2018,60,Director of Community & Communication
Transportation,"Parking Lots, Meters, Garages",3c_*portsmouth City Co,Transport related expenditure,03/10/2018,2.17,Director of Children's Services and Education
Entertainment,Bands/Orchestras/Entertain,Bowlplex,Supplies and Services related expenditure,03/10/2018,8.38,Director of Adult Services
Transportation,"Parking Lots, Meters, Garages",Gunwharf Quays,Supplies and Services related expenditure,03/10/2018,2.42,Director of Children's Services and Education
Eating And Drinking Places,Eating Places/Restaurants,Coffee Cup,Supplies and Services related expenditure,03/10/2018,8.33,Director of Children's Services and Education
Entertainment,Theatrical Producers,Ents 24 Tickets,Supplies and Services related expenditure,03/10/2018,61.3,Director of Adult Services
Retail,Shoe Repair/Shine/Hat Clean,Timpson Ltd,Premises related expenditure,03/10/2018,24,Director of Regeneration
Facilities/Repair Supplies,Lumber/Build. Supply Stores,B & Q 1260,Supplies and Services related expenditure,03/10/2018,31.24,"Director of Housing, Neighbourhood and Building Services"
Facilities/Repair Supplies,Lumber/Build. Supply Stores,B & Q 1260,Supplies and Services related expenditure,03/10/2018,53.22,"Director of Housing, Neighbourhood and Building Services"
Facilities/Repair Supplies,Lumber/Build. Supply Stores,B & Q 1260,Supplies and Services related expenditure,03/10/2018,5,"Director of Culture, Leisure & Regulatory Services"
Retail,Grocery Stores/Supermarkets,Asda Stores,Supplies and Services related expenditure,03/10/2018,10.08,"Director of Housing, Neighbourhood and Building Services"
Other Supplies,Catalog Merchant,Www.Nisbets.Com,Supplies and Services related expenditure,03/10/2018,47.91,"Director of Housing, Neighbourhood and Building Services"
Business Expenses/Services,Stationery Stores,Www.Tts-Groups.Co.Uk,Supplies and Services related expenditure,03/10/2018,49.95,"Director of Housing, Neighbourhood and Building Services"
Equipment And Furniture,Household Appliance Stores,Ao Retail Limited,Supplies and Services related expenditure,03/10/2018,478.33,"Director of Housing, Neighbourhood and Building Services"
Airlines,Airlines And Air Carriers,Flybe Ltd,Agency and Third Party Payments related expenditure,03/10/2018,153.56,Director of Children's Services and Education
Airlines,Airlines And Air Carriers,Flybe Arwntz,Agency and Third Party Payments related expenditure,03/10/2018,180.39,Director of Children's Services and Education
Retail,Grocery Stores/Supermarkets,Tesco Store 3048,Employees related expenditure,03/10/2018,11.6,Director of Public Health
Medical,Lab/Med/Hospital Equipment,Wightman & Parrish,Premises related expenditure,03/10/2018,29.94,"Director of Housing, Neighbourhood and Building Services"
Facilities/Repair Services,Small Appliance Repair Def,Hooper Services Ltd,Supplies and Services related expenditure,03/10/2018,102.35,"Director of Housing, Neighbourhood and Building Services"
Miscellaneous,Charitable/Soc Service Orgs,Iz *the Society Of,Supplies and Services related expenditure,03/10/2018,78.38,Director of Public Health
Retail,Shoe Repair/Shine/Hat Clean,Timpson Ltd,Supplies and Services related expenditure,03/10/2018,10,"Director of Housing, Neighbourhood and Building Services"
Hotels And Motels,Travelodge,Travelodge Gb0000,Agency and Third Party Payments related expenditure,03/10/2018,73.5,"Director of Housing, Neighbourhood and Building Services"
Hotels And Motels,Travelodge,Travelodge Gb0000,Agency and Third Party Payments related expenditure,03/10/2018,394.58,"Director of Housing, Neighbourhood and Building Services"
Business Services,Business Services - Default,Fast Key Services Limi,Supplies and Services related expenditure,03/10/2018,6.05,"Director of Culture, Leisure & Regulatory Services"
Automobile Services & Supplies,Service Stations,Sainsburys Petrol,Transport related expenditure,03/10/2018,50.96,Director of Children's Services and Education
Transportation,Local Commuter Transport,Hovertravel Ltd,Transport related expenditure,03/10/2018,62.14,Director of Children's Services and Education
Eating And Drinking Places,Eating Places/Restaurants,Subway,Supplies and Services related expenditure,03/10/2018,2.5,Director of Children's Services and Education
Retail,Grocery Stores/Supermarkets,Co-Op Group Food,Supplies and Services related expenditure,03/10/2018,2.85,Director of Children's Services and Education
Other Supplies,Misc Speciality Retail,Portsmouth Water Ltd,Premises related expenditure,03/10/2018,56.75,"Director of Housing, Neighbourhood and Building Services"
Facilities/Repair Services,Gen Contractors Residentl/Coml,The Internet S Lt M/Vt,Premises related expenditure,03/10/2018,191.98,Director of Children's Services and Education
Auto/Vehicle Expenses,Toll And Bridge Fees,M6 Toll,Transport related expenditure,03/10/2018,5.33,Director of Children's Services and Education
Auto/Vehicle Rentals,Enterprise Rent-A-Car,Enterprise Rent A Car Uk,Transport related expenditure,03/10/2018,192.5,Director of Children's Services and Education
Miscellaneous,Other Direct Marketers,Amazon.Co.Uk,Supplies and Services related expenditure,03/10/2018,17.25,Director of Children's Services and Education
Business To Business Eqpt/Furn,Book Stores,Amzn Mktp Uk,Supplies and Services related expenditure,03/10/2018,56.5,Director of Children's Services and Education
Transportation,Passenger Railways,Ticketofficesale - Swtrainsports,Transport related expenditure,03/10/2018,10.7,Director of Children's Services and Education
Government,Govt Serv - Default,Portsmouth City Co,Transport related expenditure,03/10/2018,10.25,Chief Exec
Transportation,Local Commuter Transport,Gosport Ferry Ltd,Transport related expenditure,03/10/2018,179,Chief Exec
Retail,Grocery Stores/Supermarkets,Asda Stores,Supplies and Services related expenditure,03/10/2018,7.72,Director of Adult Services
Eating And Drinking Places,Eating Places/Restaurants,Itsu 048 Great Peter S,Supplies and Services related expenditure,03/10/2018,4.49,Director of Children's Services and Education
Transportation,Passenger Railways,Ticketofficesale - Swtrains Soto,Transport related expenditure,03/10/2018,84.6,Director of Children's Services and Education
Transportation,Passenger Railways,Ticketofficesale - Swtrains Soto,Transport related expenditure,03/10/2018,89.8,Director of Children's Services and Education
Business To Business Eqpt/Furn,Book Stores,Amzn Mktp Uk,Supplies and Services related expenditure,03/10/2018,5.33,"Director of Housing, Neighbourhood and Building Services"
Business To Business Eqpt/Furn,Book Stores,Amzn Mktp Uk,Premises related expenditure,03/10/2018,13.28,"Director of Housing, Neighbourhood and Building Services"
Miscellaneous,Fines,Combined Court Cen,Supplies and Services related expenditure,03/10/2018,121,"Director of Housing, Neighbourhood and Building Services"
Retail,Grocery Stores/Supermarkets,Aldi 30 775,Supplies and Services related expenditure,03/10/2018,4.58,Director of Adult Services
Retail,Sporting Goods Stores,Decathlon Portsmouth,Supplies and Services related expenditure,03/10/2018,3.33,"Director of Housing, Neighbourhood and Building Services"
Facilities/Repair Supplies,Hardware Stores,Home Bargains,Supplies and Services related expenditure,03/10/2018,12.78,"Director of Housing, Neighbourhood and Building Services"
Entertainment,Bands/Orchestras/Entertain,Bh Live Active - Mount,Supplies and Services related expenditure,03/10/2018,7.75,Director of Children's Services and Education
Retail,Sporting Goods Stores,Beachlands Par 3 Golf Co,Supplies and Services related expenditure,03/10/2018,8.9,Director of Children's Services and Education
Transportation,Passenger Railways,Selfserve Ticket,Transport related expenditure,03/10/2018,11.6,"Director of HR, Legal,  Audit & Performance"
Other Supplies,Gift/Card/Novelty And Souvenir Stores,Victory Trophies,Supplies and Services related expenditure,03/10/2018,10.42,Director of Children's Services and Education
Equipment And Furniture,Household Appliance Stores,Wilko Retail Limit,Capital related expenditure,03/10/2018,24,Capital - PRED (Excl. Port & Solent LEP)
Government,Colleges/Univ/Jc/Profession,Eldon Art Shop 2,Supplies and Services related expenditure,03/10/2018,26.6,Capital - PRED (Excl. Port & Solent LEP)
Retail,Grocery Stores/Supermarkets,Iceland,Supplies and Services related expenditure,03/10/2018,1.99,Director of Adult Services
Retail,Grocery Stores/Supermarkets,Sainsburys S/mkts,Supplies and Services related expenditure,03/10/2018,4.18,Director of Adult Services
Other Supplies,Misc Speciality Retail,The Recycled Assets Co,Premises related expenditure,03/10/2018,38.9,Director of Children's Services and Education
Transportation,Passenger Railways,Selfserve Ticket,Transport related expenditure,03/10/2018,9.83,Director of Community & Communication
Government,Govt Serv - Default,Www.Moneyclaim.Gov,Supplies and Services related expenditure,03/10/2018,60,Director of Community & Communication
Retail,Hobby/Toy/Game Stores,Game Retail,Supplies and Services related expenditure,03/10/2018,44.16,"Director of Housing, Neighbourhood and Building Services"
Business Services,Business Services - Default,Eb *portsmouth Inclusi,Employees related expenditure,03/10/2018,89.43,Director of Children's Services and Education
Transportation,Passenger Railways,New Southern Railw,Transport related expenditure,03/10/2018,18.8,Director of Children's Services and Education
Government,Govt Serv - Default,Hampshire County Counc,Supplies and Services related expenditure,03/10/2018,35,Director of Children's Services and Education
Government,Govt Serv - Default,Hampshire County Counc,Supplies and Services related expenditure,03/10/2018,36.67,Director of Children's Services and Education
Retail,Artist/Craft Shops,Baker Ross Ltd,Supplies and Services related expenditure,03/10/2018,61.83,Director of Children's Services and Education
Utilities,Phone Serv/Equip Utility,Vesta Vodafone,Supplies and Services related expenditure,03/10/2018,122.95,Director of Children's Services and Education
Medical,Lab/Med/Hospital Equipment,Serco Asp,Agency and Third Party Payments related expenditure,03/10/2018,136,Director of Public Health
Medical,Dentists/Orthodontisis,City Hl Thcr Prtnrshp,Agency and Third Party Payments related expenditure,03/10/2018,137.5,Director of Public Health
Government,Govt Serv - Default,General Office,Agency and Third Party Payments related expenditure,03/10/2018,282,Director of Public Health
Entertainment,Bands/Orchestras/Entertain,Bh Live Active - Mount,Supplies and Services related expenditure,03/10/2018,6,Director of Adult Services
Other Supplies,Discount Stores,Www.Argos.Co.Uk,Supplies and Services related expenditure,03/10/2018,-8.95,"Director of Housing, Neighbourhood and Building Services"
Facilities/Repair Supplies,Lumber/Build. Supply Stores,B & Q 1260,Premises related expenditure,03/10/2018,4.13,Director of Children's Services and Education
Auto/Vehicle Rentals,Automobile Rental Agency,Southern Motor Contrac,Transport related expenditure,03/10/2018,5392.7,Director of Regeneration
Miscellaneous,Other Direct Marketers,Amazon.Co.Uk,Supplies and Services related expenditure,03/10/2018,26,Director of Community & Communication
Transportation,Passenger Railways,Carpark Machine,Supplies and Services related expenditure,03/10/2018,6.5,Director of Portsmouth International Port
Eating And Drinking Places,Fast Food Restaurants,Eat,Supplies and Services related expenditure,03/10/2018,3.04,Director of Children's Services and Education
Business To Business Facility/,Industrial Supplies - Def,Arco Ltd,Premises related expenditure,03/10/2018,42.55,"Director of Culture, Leisure & Regulatory Services"
Business Expenses/Services,Postage Stamps,Post Office Counter,Supplies and Services related expenditure,03/10/2018,2.5,Director of Children's Services and Education
Business To Business Eqpt/Furn,Book Stores,Amzn Mktp Uk,Supplies and Services related expenditure,03/10/2018,31.32,Director of Children's Services and Education
Other Supplies,Discount Stores,Poundland Ltd 1210,Supplies and Services related expenditure,03/10/2018,3,"Director of Housing, Neighbourhood and Building Services"
Medical,Med/Health Services - Def,H & G Healthcare L,Supplies and Services related expenditure,03/10/2018,407.5,Director of Public Health
Automobile Services & Supplies,Service Stations,Shell Fratton 178,Transport related expenditure,03/10/2018,41.86,"Director of Housing, Neighbourhood and Building Services"
Equipment And Furniture,Equip/Furn Rent/Lease Serv,Hss Hire,Supplies and Services related expenditure,03/10/2018,266.67,"Director of Housing, Neighbourhood and Building Services"
Business To Business Eqpt/Furn,Book Stores,Pcsbooksltd,Supplies and Services related expenditure,03/10/2018,30,Director of Children's Services and Education
Miscellaneous,Other Direct Marketers,Amazon.Co.Uk,Supplies and Services related expenditure,03/10/2018,32.88,Director of Children's Services and Education
Retail,Music Stores/Pianos,Www.Outoftheark.Com,Supplies and Services related expenditure,03/10/2018,27.2,Director of Children's Services and Education
Retail,Music Stores/Pianos,Www.Outoftheark.Com,Supplies and Services related expenditure,03/10/2018,13.25,Director of Children's Services and Education
Business To Business Eqpt/Furn,Book Stores,Amzn Mktp Uk,Supplies and Services related expenditure,03/10/2018,41.63,Director of Children's Services and Education
Business To Business Eqpt/Furn,Book Stores,The Book People,Supplies and Services related expenditure,03/10/2018,339.8,Director of Children's Services and Education
Transportation,Passenger Railways,Selfserve Ticket,Transport related expenditure,03/10/2018,11.4,"Director of HR, Legal,  Audit & Performance"
Other Supplies,Department Stores,Southern Co-Op 0018,Supplies and Services related expenditure,03/10/2018,7.37,Director of Children's Services and Education
Other Supplies,Department Stores,Southern Co-Op 0018,Supplies and Services related expenditure,03/10/2018,1.3,Director of Children's Services and Education
Other Supplies,Department Stores,Southern Co-Op 0018,Supplies and Services related expenditure,03/10/2018,1.25,Director of Children's Services and Education
Other Supplies,Department Stores,Southern Co-Op 0018,Supplies and Services related expenditure,03/10/2018,9.74,Director of Children's Services and Education
Entertainment,Bands/Orchestras/Entertain,Bowlplex,Supplies and Services related expenditure,03/10/2018,15.98,Director of Children's Services and Education
Transportation,Passenger Railways,Ticketofficesale - Swtrainsports,Transport related expenditure,03/10/2018,142.9,Director of Children's Services and Education
Business Services,Business Services - Default,Eb *naldic Conference,Supplies and Services related expenditure,03/10/2018,130,Director of Children's Services and Education
Business Services,Business Services - Default,Eb *naldic Conference,Supplies and Services related expenditure,03/10/2018,130,Director of Children's Services and Education
Miscellaneous,Fines,Combined Court Cen,Supplies and Services related expenditure,03/10/2018,355,"Director of Housing, Neighbourhood and Building Services"
Utilities,Phone Serv/Equip Utility,O2,Supplies and Services related expenditure,03/10/2018,38.68,Director of Children's Services and Education
Other Supplies,Gift/Card/Novelty And Souvenir Stores,Victory Trophies,Supplies and Services related expenditure,03/10/2018,12.71,Director of Children's Services and Education
Government,Govt Serv - Default,Hampshire County Counc,Supplies and Services related expenditure,03/10/2018,2.52,Director of Children's Services and Education
Business To Business Eqpt/Furn,Book Stores,Amzn Mktp Uk,Supplies and Services related expenditure,03/10/2018,53.19,Director of Children's Services and Education
Business To Business Eqpt/Furn,Commercial Furniture,Www.Furniture.Ipreview,Supplies and Services related expenditure,03/10/2018,127.5,Director of Children's Services and Education
Business Expenses/Services,Stationery Stores,Www.Tts-Groups.Co.Uk,Supplies and Services related expenditure,03/10/2018,181.68,Director of Children's Services and Education
Transportation,Passenger Railways,Ticketofficesale - Swtrainsports,Transport related expenditure,03/10/2018,82.8,"Director of Culture, Leisure & Regulatory Services"
Transportation,"Parking Lots, Meters, Garages",Southampton Cc Parking,Transport related expenditure,03/10/2018,5,"Director of HR, Legal,  Audit & Performance"
Automobile Services & Supplies,Service Stations,Sainsburys Petrol,Supplies and Services related expenditure,03/10/2018,2.33,Director of Children's Services and Education
Entertainment,Tourist Attractions And Xhbt,Blue Reef Aquarium,Supplies and Services related expenditure,03/10/2018,14.17,Director of Children's Services and Education
Automobile Services & Supplies,Service Stations,All Saints Service,Supplies and Services related expenditure,03/10/2018,16.67,Director of Children's Services and Education
Other Supplies,Department Stores,The Range,Supplies and Services related expenditure,03/10/2018,18.82,Director of Children's Services and Education
Business To Business Eqpt/Furn,Book Stores,Amzn Mktp Uk,Supplies and Services related expenditure,03/10/2018,32.58,Director of Children's Services and Education
Business To Business Eqpt/Furn,Book Stores,Amzn Mktp Uk,Supplies and Services related expenditure,03/10/2018,31.33,Director of Children's Services and Education
Business To Business Eqpt/Furn,Book Stores,Amzn Mktp UK Amazon.Co.Uk,Premises related expenditure,03/10/2018,38.47,Director of Children's Services and Education
Medical,Med/Health Services - Def,Mistrymedical.Co.U,Supplies and Services related expenditure,03/10/2018,45.71,Director of Children's Services and Education
Miscellaneous,Other Direct Marketers,Amazon.Co.Uk,Supplies and Services related expenditure,03/10/2018,4.95,Director of Children's Services and Education
Retail,Grocery Stores/Supermarkets,Tesco Store 3048,Supplies and Services related expenditure,03/10/2018,10.89,Director of Children's Services and Education
Other Supplies,Misc Gen Merchandise - Def,Total Merchandise,Supplies and Services related expenditure,03/10/2018,516.52,"Director of HR, Legal,  Audit & Performance"
Retail,Grocery Stores/Supermarkets,Sainsburys S/mkts,Supplies and Services related expenditure,03/10/2018,2.45,Director of Children's Services and Education
Business To Business Facility/,Industrial Supplies - Def,Www.Arco.Co.Uk,Supplies and Services related expenditure,03/10/2018,85.48,"Director of Housing, Neighbourhood and Building Services"
Facilities/Repair Services,Roofing/Siding/Sheet Metal,Www.Ceilingtilesuk.Co.,Supplies and Services related expenditure,03/10/2018,280,"Director of Housing, Neighbourhood and Building Services"
Retail,Grocery Stores/Supermarkets,Sainsburys S/mkts,Supplies and Services related expenditure,03/10/2018,0.04,Director of Community & Communication
Retail,Grocery Stores/Supermarkets,Sainsburys S/mkts,Supplies and Services related expenditure,03/10/2018,1.8,Director of Community & Communication
Retail,Grocery Stores/Supermarkets,Tesco Stores 3048,Supplies and Services related expenditure,03/10/2018,1.04,Director of Community & Communication
Retail,Grocery Stores/Supermarkets,Tesco Stores 3048,Supplies and Services related expenditure,03/10/2018,2.9,Director of Community & Communication
Facilities/Repair Supplies,Hardware Stores,Toolstation Ltd,Supplies and Services related expenditure,03/10/2018,-29.98,Director of Children's Services and Education
Facilities/Repair Supplies,Hardware Stores,Toolstation Ltd,Premises related expenditure,03/10/2018,2.38,"Director of Housing, Neighbourhood and Building Services"
Business To Business Facility/,Industrial Supplies - Def,Arco Ltd,Supplies and Services related expenditure,03/10/2018,11.16,"Director of Housing, Neighbourhood and Building Services"
Caterers Food,Caterers,Harrison Catering Service,Supplies and Services related expenditure,03/10/2018,3.21,Director of Children's Services and Education
Retail,Sporting Goods Stores,Portsmouth Golf Centre,Agency and Third Party Payments related expenditure,03/10/2018,3.6,Director of Children's Services and Education
Retail,Grocery Stores/Supermarkets,Tesco Stores 4579,Premises related expenditure,03/10/2018,7.96,Director of Children's Services and Education
Retail,Grocery Stores/Supermarkets,Tesco Stores 4579,Supplies and Services related expenditure,03/10/2018,1.96,Director of Children's Services and Education
Retail,Grocery Stores/Supermarkets,Tesco Stores 4579,Supplies and Services related expenditure,03/10/2018,4.17,Director of Children's Services and Education
Retail,Grocery Stores/Supermarkets,Tesco Stores 4579,Supplies and Services related expenditure,03/10/2018,13.75,Director of Children's Services and Education
Retail,Grocery Stores/Supermarkets,Tesco Stores 4579,Supplies and Services related expenditure,03/10/2018,13.49,Director of Children's Services and Education
Facilities/Repair Supplies,Lumber/Build. Supply Stores,Screwfix Direct,Premises related expenditure,03/10/2018,333.38,Director of Children's Services and Education
Transportation,Passenger Railways,Sw Railway,Supplies and Services related expenditure,03/10/2018,12.7,Director of Finance & IT
Transportation,Passenger Railways,Sw Railway,Supplies and Services related expenditure,03/10/2018,89.8,Director of Finance & IT
Transportation,Passenger Railways,Ticketofficesale - Swtrainsports,Transport related expenditure,03/10/2018,87.7,Director of Regeneration
Transportation,Passenger Railways,Ticketofficesale - Swtrainsports,Transport related expenditure,03/10/2018,18.7,Director of Regeneration
Government,Colleges/Univ/Jc/Profession,Gls Educational Su,Supplies and Services related expenditure,03/10/2018,32.58,Director of Children's Services and Education
Facilities/Repair Supplies,Hardware Stores,Www.Schoolmeritstickers.,Supplies and Services related expenditure,03/10/2018,33.6,Director of Children's Services and Education
Business To Business Eqpt/Furn,Book Stores,Amzn Mktp Uk,Supplies and Services related expenditure,03/10/2018,95.33,Director of Children's Services and Education
Government,Govt Serv - Default,Hampshire County Counc,Supplies and Services related expenditure,03/10/2018,296.16,Director of Children's Services and Education
Medical,Lab/Med/Hospital Equipment,Wightman & Parrish Ltd,Premises related expenditure,03/10/2018,25.97,"Director of Housing, Neighbourhood and Building Services"
Business To Business Facility/,Industrial Supplies - Def,Arco Ltd,Supplies and Services related expenditure,02/10/2018,112.45,"Director of Housing, Neighbourhood and Building Services"
Business To Business Facility/,Industrial Supplies - Def,Arco Ltd,Supplies and Services related expenditure,02/10/2018,18.74,"Director of Housing, Neighbourhood and Building Services"
Business Expenses/Services,Stationery Stores,Banner Group Ltd,Supplies and Services related expenditure,02/10/2018,14.9,"Director of Culture, Leisure & Regulatory Services"
Business Services,Business Services - Default,National Governors,Supplies and Services related expenditure,02/10/2018,260,Director of Children's Services and Education
Business Expenses/Services,Stationery Stores,Banner Group Ltd,Supplies and Services related expenditure,02/10/2018,16.84,"Director of HR, Legal,  Audit & Performance"
Business Expenses/Services,Stationery Stores,Banner Group Ltd,Supplies and Services related expenditure,02/10/2018,33.68,"Director of HR, Legal,  Audit & Performance"
Professional Services,Professional Services - Def,Castle Estates Ecomm,Supplies and Services related expenditure,02/10/2018,1050,Director of Children's Services and Education
Retail,Grocery Stores/Supermarkets,Asda Groceries Online,Supplies and Services related expenditure,03/10/2018,5,Director of Children's Services and Education
Other Supplies,Misc Speciality Retail,Amazon.Co.Uk Amazon.Co.Uk,Supplies and Services related expenditure,03/10/2018,6.99,Director of Children's Services and Education
Other Supplies,Misc Speciality Retail,Amazon.Co.Uk Amazon.Co.Uk,Supplies and Services related expenditure,03/10/2018,17.98,Director of Children's Services and Education
Automobile Services & Supplies,Service Stations,Asda Petrol 4583,Transport related expenditure,03/10/2018,70.23,Director of Children's Services and Education
Business To Business Other Sup,Uniforms & Commercial Clothing,Arco Ltd,Supplies and Services related expenditure,03/10/2018,41.99,"Director of Housing, Neighbourhood and Building Services"
Business To Business Other Sup,Uniforms & Commercial Clothing,Arco Ltd,Supplies and Services related expenditure,03/10/2018,18.51,"Director of Housing, Neighbourhood and Building Services"
Auto/Vehicle Rentals,Enterprise Rent-A-Car,Enterprise Rent A Car Uk,Supplies and Services related expenditure,03/10/2018,-166.67,Director of Children's Services and Education
Hotels And Motels,Premier Travel Inns,Premier Inn44521860,Supplies and Services related expenditure,03/10/2018,132.5,Director of Regeneration
Business To Business Eqpt/Furn,Stationery/Office Supplies,Www.Lockiechurch.Com,Supplies and Services related expenditure,03/10/2018,119.89,Director of Children's Services and Education
Government,Govt Serv - Default,Nhs Sbs,Agency and Third Party Payments related expenditure,03/10/2018,141,Director of Public Health
Government,Govt Serv - Default,Nhs Sbs,Agency and Third Party Payments related expenditure,03/10/2018,252,Director of Public Health
Eating And Drinking Places,Fast Food Restaurants,Dominos Pizza,Supplies and Services related expenditure,03/10/2018,100.78,Director of Children's Services and Education
Hotels And Motels,Premier Travel Inns,Premier Inn44534620,Supplies and Services related expenditure,03/10/2018,59.17,Director of Children's Services and Education
Hotels And Motels,Premier Travel Inns,Premier Inn44534620,Supplies and Services related expenditure,03/10/2018,59.17,Director of Children's Services and Education
Retail,Pet Stores/Food & Supply,Emsworth Aquaria & Rep,Supplies and Services related expenditure,04/10/2018,4.6,Director of Children's Services and Education
Retail,Grocery Stores/Supermarkets,Tesco Stores 4579,Supplies and Services related expenditure,04/10/2018,10.5,Director of Adult Services
Facilities/Repair Supplies,Lumber/Build. Supply Stores,B & Q 1260,Supplies and Services related expenditure,04/10/2018,10.02,Director of Adult Services
Equipment And Furniture,Phone Serv/Equip Non-Util,Www.Carphonewareho,Agency and Third Party Payments related expenditure,04/10/2018,8.33,Director of Children's Services and Education
Transportation,Local Commuter Transport,Www.Wightlink.Co.Uk,Transport related expenditure,04/10/2018,16.4,Director of Children's Services and Education
Transportation,Passenger Railways,Ticketofficesale - Swtrainsports,Transport related expenditure,04/10/2018,12.6,Director of Adult Services
Medical,Lab/Med/Hospital Equipment,Wightman & Parrish,Premises related expenditure,04/10/2018,48.15,"Director of Housing, Neighbourhood and Building Services"
Retail,Sporting Goods Stores,Portsmouth Golf Centre,Supplies and Services related expenditure,04/10/2018,13.33,Director of Children's Services and Education
Other Supplies,Discount Stores,Www.Argos.Co.Uk,Supplies and Services related expenditure,04/10/2018,140.78,Director of Children's Services and Education
Transportation,"Parking Lots, Meters, Garages",3c_*portsmouth City Co,Supplies and Services related expenditure,04/10/2018,2.58,Director of Regeneration
Retail,Grocery Stores/Supermarkets,Iceland,Supplies and Services related expenditure,04/10/2018,12,Director of Adult Services
Miscellaneous,Fines,Combined Court Cen,Supplies and Services related expenditure,04/10/2018,2055,Director of Children's Services and Education
Facilities/Repair Supplies,Lawn/Garden Supply/Nursery,Carters Of Swanwic,Supplies and Services related expenditure,04/10/2018,44.32,"Director of Housing, Neighbourhood and Building Services"
Transportation,"Parking Lots, Meters, Garages",3c_*portsmouth City Co,Transport related expenditure,04/10/2018,3.75,Director of Children's Services and Education
Equipment And Furniture,Household Appliance Stores,Battery Station,Supplies and Services related expenditure,04/10/2018,13.28,Director of Children's Services and Education
Eating And Drinking Places,Eating Places/Restaurants,Greyhound Cafe,Supplies and Services related expenditure,04/10/2018,18.46,Director of Children's Services and Education
Transportation,Passenger Railways,Ticketofficesale - Portsmouth,Transport related expenditure,04/10/2018,40.1,Director of Children's Services and Education
Business To Business Facility/,Industrial Supplies - Def,Arco Ltd,Supplies and Services related expenditure,04/10/2018,7.78,"Director of Culture, Leisure & Regulatory Services"
Business Expenses/Services,Stationery Stores,Suk Retail Ltd,Supplies and Services related expenditure,04/10/2018,13.32,"Director of Culture, Leisure & Regulatory Services"
Facilities/Repair Supplies,Automotive Parts Stores,Westleigh Motor Factor,Transport related expenditure,04/10/2018,10,"Director of Housing, Neighbourhood and Building Services"
Business Expenses/Services,Postage Stamps,Royal Mail Online Shop,Supplies and Services related expenditure,04/10/2018,67,Director of Children's Services and Education
Clothing/Shoes/Uniforms,Mens/Womens Clothing Stores,Mountain Warehouse,Supplies and Services related expenditure,04/10/2018,-2.99,Director of Children's Services and Education
Business To Business Eqpt/Furn,Book Stores,Amzn Mktp Uk,Supplies and Services related expenditure,04/10/2018,8.63,Director of Children's Services and Education
Other Supplies,Misc Speciality Retail,Amazon.Co.Uk Amazon.Co.Uk,Supplies and Services related expenditure,04/10/2018,11.98,Director of Children's Services and Education
Transportation,Transportation Svcs - Default,Condor Ferries Ltd,Transport related expenditure,04/10/2018,30,Director of Adult Services
Miscellaneous,Member Organizations - Def,Alzheimers Society,Supplies and Services related expenditure,04/10/2018,95.83,Director of Adult Services
Utilities,Utilities/Elec/Gas/H2O/Sani,Www.Waterapplicationso,Supplies and Services related expenditure,04/10/2018,600,"Director of Housing, Neighbourhood and Building Services"
Freight/Courier/Warehouse Svcs,Public Warehousing,Big Yellow S S Portsmout,Premises related expenditure,04/10/2018,41.66,"Director of Housing, Neighbourhood and Building Services"
Freight/Courier/Warehouse Svcs,Public Warehousing,Big Yellow S S Portsmout,Premises related expenditure,04/10/2018,17,"Director of Housing, Neighbourhood and Building Services"
Freight/Courier/Warehouse Svcs,Public Warehousing,Big Yellow S S Portsmout,Premises related expenditure,04/10/2018,119,"Director of Housing, Neighbourhood and Building Services"
Freight/Courier/Warehouse Svcs,Public Warehousing,Big Yellow S S Portsmout,Premises related expenditure,04/10/2018,24,"Director of Housing, Neighbourhood and Building Services"
Freight/Courier/Warehouse Svcs,Public Warehousing,Big Yellow S S Portsmout,Premises related expenditure,04/10/2018,178.7,"Director of Housing, Neighbourhood and Building Services"
Hotels And Motels,Lodging/Hotels/Motels/Resorts,Keppels Head Hotel,Agency and Third Party Payments related expenditure,04/10/2018,964.18,"Director of Housing, Neighbourhood and Building Services"
Hotels And Motels,Lodging/Hotels/Motels/Resorts,Keppels Head Hotel,Agency and Third Party Payments related expenditure,04/10/2018,862.75,"Director of Housing, Neighbourhood and Building Services"
Utilities,Phone Serv/Equip Utility,Vodafone Ltd,Supplies and Services related expenditure,04/10/2018,235.97,Director of Adult Services
Retail,Grocery Stores/Supermarkets,Asda Stores,Supplies and Services related expenditure,04/10/2018,18.75,Director of Children's Services and Education
Retail,Grocery Stores/Supermarkets,Asda Stores,Agency and Third Party Payments related expenditure,04/10/2018,4.17,Director of Children's Services and Education
Retail,Grocery Stores/Supermarkets,Asda Stores,Premises related expenditure,04/10/2018,1.67,Director of Children's Services and Education
Retail,Grocery Stores/Supermarkets,Asda Stores,Supplies and Services related expenditure,04/10/2018,2.92,Director of Children's Services and Education
Retail,Grocery Stores/Supermarkets,Asda Stores,Supplies and Services related expenditure,04/10/2018,18.08,Director of Children's Services and Education
Government,Govt Serv - Default,Hm Passport Office,Supplies and Services related expenditure,04/10/2018,54,Director of Children's Services and Education
Entertainment,Tourist Attractions And Xhbt,Marwell Services Ltd,Supplies and Services related expenditure,04/10/2018,10.17,Director of Children's Services and Education
Entertainment,Tourist Attractions And Xhbt,Marwell Wildlife,Supplies and Services related expenditure,04/10/2018,23.98,Director of Children's Services and Education
Transportation,Passenger Railways,Ticketofficesale - Swtrains Hava,Transport related expenditure,04/10/2018,46.8,Director of Children's Services and Education
Business To Business Eqpt/Furn,Book Stores,Amzn Mktp Uk,Supplies and Services related expenditure,04/10/2018,12.48,Director of Adult Services
Business To Business Eqpt/Furn,Book Stores,Amzn Mktp Uk,Supplies and Services related expenditure,04/10/2018,3.74,Director of Adult Services
Business Expenses/Services,News Dealers/Newsstands,Wh Smith,Supplies and Services related expenditure,04/10/2018,113.48,Director of Children's Services and Education
Facilities/Repair Services,Gen Contractors Residentl/Coml,K & N Finishers (South,Supplies and Services related expenditure,04/10/2018,45,Director of Regeneration
Equipment And Furniture,Furniture/Equip Stores,Www.Officefurnitureonl,Supplies and Services related expenditure,04/10/2018,103,Director of Children's Services and Education
Equipment And Furniture,Household Appliance Stores,Wilko Retail Limit,Agency and Third Party Payments related expenditure,04/10/2018,86.55,Director of Children's Services and Education
Retail,Grocery Stores/Supermarkets,Tesco Stores 5153,Supplies and Services related expenditure,04/10/2018,12.64,Director of Children's Services and Education
Business To Business Facility/,Industrial Supplies - Def,Www.Arco.Co.Uk,Supplies and Services related expenditure,04/10/2018,185.18,"Director of Housing, Neighbourhood and Building Services"
Retail,Grocery Stores/Supermarkets,Tesco Store 3048,Supplies and Services related expenditure,04/10/2018,10.17,Director of Community & Communication
Retail,Grocery Stores/Supermarkets,Tesco Store 3048,Supplies and Services related expenditure,04/10/2018,2.9,Director of Community & Communication
Business To Business Eqpt/Furn,Book Stores,Amzn Mktp Uk,Supplies and Services related expenditure,04/10/2018,4.33,Director of Public Health
Transportation,Passenger Railways,Ticketofficesale - Swtrainsports,Transport related expenditure,04/10/2018,10.7,"Director of Housing, Neighbourhood and Building Services"
Miscellaneous,Charitable/Soc Service Orgs,Salvation Army,Capital related expenditure,04/10/2018,215,Capital - Housing RA
Hotels And Motels,Travelodge,Travelodge Gb0000,Agency and Third Party Payments related expenditure,04/10/2018,15.75,"Director of Housing, Neighbourhood and Building Services"
Hotels And Motels,Travelodge,Travelodge Gb0000,Agency and Third Party Payments related expenditure,04/10/2018,197.5,"Director of Housing, Neighbourhood and Building Services"
Hotels And Motels,Travelodge,Travelodge Gb0000,Agency and Third Party Payments related expenditure,04/10/2018,63,"Director of Housing, Neighbourhood and Building Services"
Hotels And Motels,Travelodge,Travelodge Gb0000,Agency and Third Party Payments related expenditure,04/10/2018,255,"Director of Housing, Neighbourhood and Building Services"
Business To Business Facility/,Industrial Supplies - Def,Express Weldcare Services,Premises related expenditure,04/10/2018,217.3,Director of Portsmouth International Port
Retail,Grocery Stores/Supermarkets,Tesco Store 3048,Supplies and Services related expenditure,04/10/2018,10.68,"Director of Housing, Neighbourhood and Building Services"
Eating And Drinking Places,Eating Places/Restaurants,Pret A Manger,Supplies and Services related expenditure,04/10/2018,7.55,Director of Children's Services and Education
Eating And Drinking Places,Eating Places/Restaurants,Pret A Manger,Supplies and Services related expenditure,04/10/2018,0.04,Director of Children's Services and Education
Eating And Drinking Places,Fast Food Restaurants,Burger King,Supplies and Services related expenditure,04/10/2018,8.23,Director of Children's Services and Education
Eating And Drinking Places,Eating Places/Restaurants,Iz *crepes And Con,Supplies and Services related expenditure,04/10/2018,10.83,Director of Children's Services and Education
Transportation,Passenger Railways,Ticketofficesale - Swtrainsports,Supplies and Services related expenditure,04/10/2018,77.1,Director of Children's Services and Education
Business To Business Eqpt/Furn,Book Stores,Amzn Mktp Uk,Supplies and Services related expenditure,04/10/2018,16.4,Director of Adult Services
Business To Business Eqpt/Furn,Stationery/Office Supplies,Cartridgepeople.Com,Supplies and Services related expenditure,04/10/2018,51.25,Director of Children's Services and Education
Facilities/Repair Supplies,Lumber/Build. Supply Stores,B & Q 1260,Supplies and Services related expenditure,04/10/2018,45.02,"Director of Housing, Neighbourhood and Building Services"
Business To Business Facility/,Industrial Supplies - Def,Www.Arco.Co.Uk,Supplies and Services related expenditure,04/10/2018,77.52,"Director of Housing, Neighbourhood and Building Services"
Medical,Lab/Med/Hospital Equipment,Wightman & Parrish Ltd,Supplies and Services related expenditure,04/10/2018,119.68,"Director of Housing, Neighbourhood and Building Services"
Medical,Lab/Med/Hospital Equipment,Wightman & Parrish Ltd,Premises related expenditure,04/10/2018,286.4,"Director of Housing, Neighbourhood and Building Services"
Auto/Vehicle Expenses,Toll And Bridge Fees,M6 Toll,Transport related expenditure,04/10/2018,5.33,Director of Children's Services and Education
Retail,Drug Stores & Pharmacies,Rowlands Pharmacy,Supplies and Services related expenditure,04/10/2018,3.33,Director of Children's Services and Education
Other Supplies,Department Stores,Southern Co-Op 0009,Supplies and Services related expenditure,04/10/2018,3.68,Director of Children's Services and Education
Retail,Grocery Stores/Supermarkets,Wm Morrisons Store,Supplies and Services related expenditure,04/10/2018,2.33,Director of Children's Services and Education
Retail,Grocery Stores/Supermarkets,Wm Morrisons Store,Supplies and Services related expenditure,04/10/2018,15.35,Director of Children's Services and Education
Clothing/Shoes/Uniforms,Mens/Womens Clothing Stores,Footasylum Plc,Agency and Third Party Payments related expenditure,04/10/2018,74.99,Director of Children's Services and Education
Miscellaneous,Continuity/Subscription Mercht,Mailchimp,Supplies and Services related expenditure,04/10/2018,21.05,"Director of Culture, Leisure & Regulatory Services"
Government,Govt Serv - Default,Portsmouth City Co,Transport related expenditure,04/10/2018,10.25,Chief Exec
Facilities/Repair Services,Spec Contractors - Default,Christie Intruder Alar,Supplies and Services related expenditure,04/10/2018,20,"Director of Housing, Neighbourhood and Building Services"
Business To Business Facility/,Hardware Equipment/Supplies,Croma Locksmiths & Sec,Supplies and Services related expenditure,04/10/2018,66.48,"Director of Housing, Neighbourhood and Building Services"
Retail,Grocery Stores/Supermarkets,Asda Stores,Supplies and Services related expenditure,04/10/2018,6.96,Director of Children's Services and Education
Facilities/Repair Supplies,Lumber/Build. Supply Stores,B & Q 1260,Premises related expenditure,04/10/2018,24.93,Director of Children's Services and Education
Eating And Drinking Places,Eating Places/Restaurants,Greyhound Cafe,Supplies and Services related expenditure,04/10/2018,18,Director of Children's Services and Education
Business To Business Facility/,Industrial Supplies - Def,Arco Ltd,Premises related expenditure,04/10/2018,74.99,"Director of Housing, Neighbourhood and Building Services"
Retail,Sporting Goods Stores,Portsmouth Golf Centre,Supplies and Services related expenditure,04/10/2018,4.58,Director of Children's Services and Education
Eating And Drinking Places,Eating Places/Restaurants,Subway,Supplies and Services related expenditure,04/10/2018,5.58,Director of Children's Services and Education
Retail,Grocery Stores/Supermarkets,3s Convenience Store N,Supplies and Services related expenditure,04/10/2018,2.41,Director of Children's Services and Education
Retail,Grocery Stores/Supermarkets,3s Convenience Store N,Supplies and Services related expenditure,04/10/2018,2.49,Director of Children's Services and Education
Entertainment,Amusement/Rec Serv - Def,Playzone Portsmouth,Supplies and Services related expenditure,04/10/2018,9.92,Director of Children's Services and Education
Other Supplies,Misc Speciality Retail,The Recycled Assets Co,Supplies and Services related expenditure,04/10/2018,41.67,Director of Children's Services and Education
Other Supplies,Misc Speciality Retail,The Recycled Assets Co,Supplies and Services related expenditure,04/10/2018,8.33,Director of Children's Services and Education
Facilities/Repair Services,Spec Contractors - Default,Rewards4 Dimension,Supplies and Services related expenditure,04/10/2018,11.25,Director of Children's Services and Education
Government,Govt Serv - Default,Hampshire County Counc,Supplies and Services related expenditure,04/10/2018,141.6,Director of Children's Services and Education
Business To Business Other Sup,Uniforms & Commercial Clothing,Emj Management Ltd,Supplies and Services related expenditure,04/10/2018,73.7,Director of Children's Services and Education
Transportation,Passenger Railways,Lner Web Sales,Transport related expenditure,04/10/2018,142,Director of Community & Communication
Business To Business Eqpt/Furn,Book Stores,Amzn Mktp Uk,Supplies and Services related expenditure,04/10/2018,104.13,Director of Children's Services and Education
Business To Business Eqpt/Furn,Book Stores,Amzn Mktp Uk,Supplies and Services related expenditure,04/10/2018,75,Director of Children's Services and Education
Retail,Grocery Stores/Supermarkets,Tesco Store 3055,Supplies and Services related expenditure,04/10/2018,22.68,Director of Children's Services and Education
Retail,Grocery Stores/Supermarkets,Tesco Store 3055,Supplies and Services related expenditure,04/10/2018,25.14,Director of Children's Services and Education
Retail,Grocery Stores/Supermarkets,Tesco Store 3055,Supplies and Services related expenditure,04/10/2018,155.74,Director of Children's Services and Education
Business Expenses/Services,News Dealers/Newsstands,Wh Smith,Supplies and Services related expenditure,04/10/2018,8.48,Director of Children's Services and Education
Business Expenses/Services,Stationery Stores,Labelzone,Supplies and Services related expenditure,04/10/2018,60.76,Director of Finance & IT
Transportation,Passenger Railways,Ticketofficesale - Swtrainsports,Transport related expenditure,04/10/2018,74.3,Director of Children's Services and Education
Transportation,Passenger Railways,New Southern Railw,Transport related expenditure,04/10/2018,83.8,Director of Children's Services and Education
Business Expenses/Services,Books/Periodicals/Newspapers,Policy Press At Uob,Supplies and Services related expenditure,04/10/2018,18.19,"Director of HR, Legal,  Audit & Performance"
Business Services,Business Services - Default,Fast Key Services Limi,Supplies and Services related expenditure,04/10/2018,13.52,"Director of Housing, Neighbourhood and Building Services"
Clothing/Shoes/Uniforms,Mens/Womens Clothing Stores,Teeone Limited,Capital related expenditure,04/10/2018,345,Director of Regeneration
Government,Business/Secretarial School,Www.Westminster-Briefi,Employees related expenditure,04/10/2018,295,Director of Regeneration
Business To Business Services,Misc Publishing & Printing,Www.Neccontract.Com,Employees related expenditure,04/10/2018,325,Director of Regeneration
Transportation,Local Commuter Transport,Www.Hovertravel.Com,Supplies and Services related expenditure,04/10/2018,23.9,Director of Children's Services and Education
Transportation,Local Commuter Transport,Www.Hovertravel.Com,Supplies and Services related expenditure,04/10/2018,23.9,Director of Children's Services and Education
Hotels And Motels,Lodging/Hotels/Motels/Resorts,Airbnb * Hm5eyfryet,Agency and Third Party Payments related expenditure,04/10/2018,722.26,Director of Children's Services and Education
Business Expenses/Services,Stationery Stores,Banner Group Ltd,Premises related expenditure,04/10/2018,-31.4,"Director of Housing, Neighbourhood and Building Services"
Transportation,Passenger Railways,Carpark Machine,Supplies and Services related expenditure,04/10/2018,6.5,Director of Portsmouth International Port
Eating And Drinking Places,Eating Places/Restaurants,Westminster Cafe,Supplies and Services related expenditure,04/10/2018,22.9,Director of Portsmouth International Port
Medical,Lab/Med/Hospital Equipment,Wightman & Parrish Ltd,Premises related expenditure,04/10/2018,880.92,"Director of Housing, Neighbourhood and Building Services"
Medical,Lab/Med/Hospital Equipment,Wightman & Parrish Ltd,Supplies and Services related expenditure,04/10/2018,361.46,Director of Adult Services
Medical,Lab/Med/Hospital Equipment,Wightman & Parrish Ltd,Premises related expenditure,04/10/2018,307.44,Director of Adult Services
Business To Business Other Sup,Uniforms & Commercial Clothing,Alexandra Website,Supplies and Services related expenditure,04/10/2018,27.8,Director of Adult Services
Utilities,Utilities/Elec/Gas/H2O/Sani,Www.Waterapplicationso,Premises related expenditure,04/10/2018,230.83,"Director of Housing, Neighbourhood and Building Services"
Retail,Grocery Stores/Supermarkets,Asda Stores,Supplies and Services related expenditure,04/10/2018,4.4,Director of Children's Services and Education
Business To Business Eqpt/Furn,Book Stores,Amzn Mktp Uk,Supplies and Services related expenditure,04/10/2018,9.14,Director of Children's Services and Education
Retail,Hobby/Toy/Game Stores,Paypal,Supplies and Services related expenditure,04/10/2018,292.53,Director of Children's Services and Education
Transportation,Passenger Railways,Ticketofficesale - Swtrainsports,Transport related expenditure,04/10/2018,12.7,"Director of HR, Legal,  Audit & Performance"
Facilities/Repair Supplies,Lumber/Build. Supply Stores,B & Q 1260,Supplies and Services related expenditure,04/10/2018,34.54,"Director of Housing, Neighbourhood and Building Services"
Retail,Grocery Stores/Supermarkets,Sainsburys S/mkts,Supplies and Services related expenditure,04/10/2018,2.85,Director of Adult Services
Business To Business Eqpt/Furn,Book Stores,Amzn Mktp Uk,Supplies and Services related expenditure,04/10/2018,132.33,"Director of Housing, Neighbourhood and Building Services"
Retail,Grocery Stores/Supermarkets,Sainsburys S/mkt,Supplies and Services related expenditure,04/10/2018,3.5,Director of Children's Services and Education
Retail,Grocery Stores/Supermarkets,Tesco Stores 6002,Supplies and Services related expenditure,04/10/2018,1.33,Director of Children's Services and Education
Retail,Grocery Stores/Supermarkets,Tesco Stores 6002,Supplies and Services related expenditure,04/10/2018,18.09,Director of Children's Services and Education
Retail,Artist/Craft Shops,Hobbycraft,Supplies and Services related expenditure,04/10/2018,38.75,Director of Children's Services and Education
Miscellaneous,Other Direct Marketers,Amazon.Co.Uk,Supplies and Services related expenditure,04/10/2018,17.25,Director of Children's Services and Education
Auto/Vehicle Dealers,Motorcycle Dealers,Portsmouthmobility,Supplies and Services related expenditure,04/10/2018,12,Director of Adult Services
Business Services,Business Services - Default,Fast Key Services Limi,Supplies and Services related expenditure,04/10/2018,11.8,Director of Children's Services and Education
Business Services,Business Services - Default,Fast Key Services Limi,Supplies and Services related expenditure,04/10/2018,1.07,Director of Children's Services and Education
Entertainment,Bands/Orchestras/Entertain,Bh Live Active - Mount,Supplies and Services related expenditure,04/10/2018,5.83,Director of Children's Services and Education
Facilities/Repair Supplies,Hardware Stores,Home Bargains,Premises related expenditure,04/10/2018,7.38,Director of Children's Services and Education
Retail,Grocery Stores/Supermarkets,Tesco Store 3055,Supplies and Services related expenditure,04/10/2018,2,Director of Children's Services and Education
Retail,Grocery Stores/Supermarkets,Tesco Store 3055,Premises related expenditure,04/10/2018,3.33,Director of Children's Services and Education
Retail,Grocery Stores/Supermarkets,Tesco Store 3055,Supplies and Services related expenditure,04/10/2018,1.25,Director of Children's Services and Education
Retail,Grocery Stores/Supermarkets,Tesco Store 3055,Supplies and Services related expenditure,04/10/2018,3.7,Director of Children's Services and Education
Miscellaneous,Fines,Combined Court Cen,Supplies and Services related expenditure,04/10/2018,100.83,"Director of Housing, Neighbourhood and Building Services"
Transportation,Passenger Railways,Selfserve Ticket,Transport related expenditure,04/10/2018,4.1,Director of Children's Services and Education
Business To Business Eqpt/Furn,Book Stores,Amzn Mktp Uk,Supplies and Services related expenditure,04/10/2018,10.66,Director of Children's Services and Education
Retail,Grocery Stores/Supermarkets,Tesco Store 3048,Supplies and Services related expenditure,04/10/2018,9.5,Director of Children's Services and Education
Miscellaneous,Other Direct Marketers,Amazon.Co.Uk,Supplies and Services related expenditure,04/10/2018,23.86,Director of Adult Services
Eating And Drinking Places,Eating Places/Restaurants,Greggs Plc,Supplies and Services related expenditure,04/10/2018,37,Director of Children's Services and Education
Government,Govt Serv - Default,Portsmouth City Counci,Supplies and Services related expenditure,04/10/2018,44.85,Director of Children's Services and Education
Retail,Grocery Stores/Supermarkets,Tesco Stores 2322,Supplies and Services related expenditure,04/10/2018,6.43,Director of Children's Services and Education
Facilities/Repair Supplies,Lawn/Garden Supply/Nursery,Carters Of Swanwic,Supplies and Services related expenditure,04/10/2018,697,"Director of Housing, Neighbourhood and Building Services"
Retail,Grocery Stores/Supermarkets,Sainsburys S/mkts,Supplies and Services related expenditure,04/10/2018,4.45,Director of Children's Services and Education
Business To Business Eqpt/Furn,Book Stores,Amzn Mktp Uk,Capital related expenditure,04/10/2018,4.66,Director of Regeneration
Retail,Artist/Craft Shops,Baker Ross,Capital related expenditure,04/10/2018,15.49,Director of Regeneration
Other Supplies,Discount Stores,Www.Theworks.Co.Uk,Supplies and Services related expenditure,04/10/2018,15,"Director of Culture, Leisure & Regulatory Services"
Facilities/Repair Supplies,Lawn/Garden Supply/Nursery,Carters Of Swanwic,Supplies and Services related expenditure,04/10/2018,300.83,"Director of Housing, Neighbourhood and Building Services"
Facilities/Repair Supplies,Lawn/Garden Supply/Nursery,Carters Of Swanwic,Supplies and Services related expenditure,04/10/2018,335,"Director of Housing, Neighbourhood and Building Services"
Transportation,Passenger Railways,Ticketofficesale - Swtrainsports,Transport related expenditure,04/10/2018,138.75,Director of Children's Services and Education
Other Supplies,Misc Speciality Retail,Food Safety Direct Ltd,Supplies and Services related expenditure,04/10/2018,33.49,Director of Children's Services and Education
Retail,Grocery Stores/Supermarkets,Asda Stores,Supplies and Services related expenditure,04/10/2018,2,Director of Children's Services and Education
Equipment And Furniture,Household Appliance Stores,Wilko Retail Limit,Supplies and Services related expenditure,04/10/2018,4.17,Director of Regeneration
Transportation,Passenger Railways,Ticketofficesale - Swtrainsports,Transport related expenditure,04/10/2018,74.3,Director of Regeneration
Business To Business Eqpt/Furn,Book Stores,Amzn Mktp Uk,Premises related expenditure,04/10/2018,2.08,Director of Children's Services and Education
Miscellaneous,Other Direct Marketers,Amazon.Co.Uk,Supplies and Services related expenditure,04/10/2018,13.75,Director of Children's Services and Education
Medical,Lab/Med/Hospital Equipment,Reliance Medical Ltd,Supplies and Services related expenditure,04/10/2018,51.45,Director of Children's Services and Education
Other Supplies,Misc Speciality Retail,Amazon.Co.Uk Amazon.Co.Uk,Supplies and Services related expenditure,04/10/2018,20.25,Director of Adult Services
Business Services,Advertising Services,Facebk Q95bzhjjf2,Supplies and Services related expenditure,05/10/2018,30,"Director of Culture, Leisure & Regulatory Services"
Business Expenses/Services,Stationery Stores,Banner Group Ltd,Supplies and Services related expenditure,02/10/2018,6.9,"Director of Housing, Neighbourhood and Building Services"
Business Expenses/Services,Stationery Stores,Banner Group Ltd,Supplies and Services related expenditure,02/10/2018,17.85,Director of Children's Services and Education
Business Expenses/Services,Stationery Stores,Banner Group Ltd,Supplies and Services related expenditure,02/10/2018,39.09,Director of Children's Services and Education
Business Expenses/Services,Stationery Stores,Banner Group Ltd,Supplies and Services related expenditure,02/10/2018,58.36,Director of Children's Services and Education
Business Expenses/Services,Stationery Stores,Banner Group Ltd,Supplies and Services related expenditure,02/10/2018,37.38,Director of Regeneration
Business Expenses/Services,Stationery Stores,Banner Group Ltd,Supplies and Services related expenditure,02/10/2018,36.19,Director of Regeneration
Business Expenses/Services,Stationery Stores,Banner Group Ltd,Supplies and Services related expenditure,03/10/2018,5.66,"Director of Housing, Neighbourhood and Building Services"
Business Expenses/Services,Stationery Stores,Banner Group Ltd,Supplies and Services related expenditure,03/10/2018,11.36,Director of Children's Services and Education
Business Expenses/Services,Stationery Stores,Banner Group Ltd,Supplies and Services related expenditure,03/10/2018,161.73,Director of Children's Services and Education
Business Expenses/Services,Stationery Stores,Banner Group Ltd,Supplies and Services related expenditure,03/10/2018,3.17,Director of Public Health
Business Expenses/Services,Stationery Stores,Banner Group Ltd,Supplies and Services related expenditure,03/10/2018,29.21,Director of Community & Communication
Business Expenses/Services,Stationery Stores,Banner Group Ltd,Supplies and Services related expenditure,03/10/2018,72.5,Director of Finance & IT
Business Expenses/Services,Stationery Stores,Banner Group Ltd,Supplies and Services related expenditure,03/10/2018,43.77,"Director of Culture, Leisure & Regulatory Services"
Business Expenses/Services,Stationery Stores,Banner Group Ltd,Supplies and Services related expenditure,03/10/2018,281.81,"Director of Culture, Leisure & Regulatory Services"
Business Expenses/Services,Stationery Stores,Banner Group Ltd,Supplies and Services related expenditure,03/10/2018,5.85,Director of Finance & IT
Business Expenses/Services,Stationery Stores,Banner Group Ltd,Supplies and Services related expenditure,03/10/2018,21.21,Director of Finance & IT
Business Expenses/Services,Stationery Stores,Banner Group Ltd,Supplies and Services related expenditure,03/10/2018,6.12,Director of Public Health
Hotels And Motels,Lodging/Hotels/Motels/Resorts,Best Western Royal Bea,Supplies and Services related expenditure,04/10/2018,258.33,Director of Children's Services and Education
Transportation,"Parking Lots, Meters, Garages",Ncp Limited,Transport related expenditure,04/10/2018,2.08,Director of Children's Services and Education
Hotels And Motels,Doubletree Hotel,Double Tree & Hilton,Supplies and Services related expenditure,04/10/2018,144,Director of Children's Services and Education
Business To Business Facility/,Electrical Parts/Equipment,Rs Components,Premises related expenditure,04/10/2018,174.42,Director of Portsmouth International Port
Government,Govt Serv - Default,Portsmouth Council,Agency and Third Party Payments related expenditure,04/10/2018,4,"Director of Culture, Leisure & Regulatory Services"
Facilities/Repair Supplies,Lumber/Build. Supply Stores,Jewsons,Supplies and Services related expenditure,04/10/2018,53.56,"Director of Housing, Neighbourhood and Building Services"
Government,Govt Serv - Default,Pcc Moto Payment,Supplies and Services related expenditure,04/10/2018,30,Director of Children's Services and Education
Other Supplies,Misc Speciality Retail,Amazon.Co.Uk Amazon.Co.Uk,Supplies and Services related expenditure,04/10/2018,14.81,Director of Adult Services
Retail,Grocery Stores/Supermarkets,Asda Groceries Online,Supplies and Services related expenditure,05/10/2018,2.2,Director of Children's Services and Education
Retail,Grocery Stores/Supermarkets,Asda Groceries Online,Supplies and Services related expenditure,05/10/2018,4.17,Director of Children's Services and Education
Retail,Grocery Stores/Supermarkets,Asda Groceries Online,Supplies and Services related expenditure,05/10/2018,60.43,Director of Children's Services and Education
Other Supplies,Department Stores,The Range,Supplies and Services related expenditure,05/10/2018,18.56,Director of Adult Services
Business Services,Business Services - Default,Eb *outstanding Social,Supplies and Services related expenditure,05/10/2018,457.14,Director of Adult Services
Transportation,Passenger Railways,Trainline,Transport related expenditure,05/10/2018,4.22,Director of Children's Services and Education
Hotels And Motels,Lodging/Hotels/Motels/Resorts,Hotel On Booking.Com,Supplies and Services related expenditure,05/10/2018,35.99,Director of Finance & IT
Miscellaneous,Member Organizations - Def,Gpa,Supplies and Services related expenditure,05/10/2018,125,Director of Finance & IT
Facilities/Repair Services,Spec Contractors - Default,Christie Intruder Alar,Supplies and Services related expenditure,05/10/2018,125,"Director of Housing, Neighbourhood and Building Services"
Retail,Sporting Goods Stores,Sportsdirect 219,Supplies and Services related expenditure,05/10/2018,4.17,Director of Children's Services and Education
Eating And Drinking Places,Eating Places/Restaurants,Subway,Supplies and Services related expenditure,05/10/2018,4.17,Director of Children's Services and Education
Eating And Drinking Places,Eating Places/Restaurants,Subway,Supplies and Services related expenditure,05/10/2018,4.5,Director of Children's Services and Education
Retail,Sporting Goods Stores,Footasylum,Supplies and Services related expenditure,05/10/2018,37.49,Director of Children's Services and Education
Clothing/Shoes/Uniforms,Mens/Womens Clothing Stores,Escape Menswear,Supplies and Services related expenditure,05/10/2018,50,Director of Children's Services and Education
Other Supplies,Department Stores,Debenhams.Com,Premises related expenditure,05/10/2018,24.16,"Director of Culture, Leisure & Regulatory Services"
Miscellaneous,Fines,Combined Court Cen,Supplies and Services related expenditure,05/10/2018,455,Director of Children's Services and Education
Transportation,"Parking Lots, Meters, Garages",3c_*portsmouth City Co,Transport related expenditure,05/10/2018,2.92,Director of Children's Services and Education
Eating And Drinking Places,Eating Places/Restaurants,Pret A Manger,Supplies and Services related expenditure,05/10/2018,4.79,Director of Children's Services and Education
Transportation,Passenger Railways,Lul Ticket Machine,Transport related expenditure,05/10/2018,12.7,Director of Children's Services and Education
Transportation,Passenger Railways,Selfserve Ticket,Transport related expenditure,05/10/2018,37.1,Director of Children's Services and Education
Retail,Grocery Stores/Supermarkets,Tesco Stores 6002,Supplies and Services related expenditure,05/10/2018,-1,Director of Children's Services and Education
Retail,Grocery Stores/Supermarkets,Tesco Stores 6002,Supplies and Services related expenditure,05/10/2018,7.49,Director of Children's Services and Education
Retail,Grocery Stores/Supermarkets,Tesco Stores 6002,Supplies and Services related expenditure,05/10/2018,128.96,Director of Children's Services and Education
Facilities/Repair Supplies,Lawn/Garden Supply/Nursery,Merry Mower Services,Supplies and Services related expenditure,05/10/2018,118.34,"Director of Housing, Neighbourhood and Building Services"
Retail,Grocery Stores/Supermarkets,Aldi 67 775,Supplies and Services related expenditure,05/10/2018,1.78,Director of Children's Services and Education
Retail,Grocery Stores/Supermarkets,Aldi 67 775,Premises related expenditure,05/10/2018,4.82,Director of Children's Services and Education
Other Supplies,Department Stores,Southern Co-Op 0009,Supplies and Services related expenditure,05/10/2018,9.38,Director of Children's Services and Education
Retail,Grocery Stores/Supermarkets,Tesco Stores 4579,Supplies and Services related expenditure,05/10/2018,8.33,Director of Children's Services and Education
Retail,Grocery Stores/Supermarkets,Tesco Stores 4579,Supplies and Services related expenditure,05/10/2018,77.92,Director of Children's Services and Education
Business To Business Eqpt/Furn,Book Stores,Amzn Mktp UK Amazon.Co.Uk,Supplies and Services related expenditure,05/10/2018,29.82,Director of Children's Services and Education
Other Supplies,Catalog Merchant,Www.Nisbets.Com,Supplies and Services related expenditure,05/10/2018,44.31,"Director of Housing, Neighbourhood and Building Services"
Transportation,Taxicabs/Limousines,City Wide Taxis,Transport related expenditure,05/10/2018,36.1,"Director of Housing, Neighbourhood and Building Services"
Hotels And Motels,Travelodge,Travelodge Gb0000,Agency and Third Party Payments related expenditure,05/10/2018,47.25,"Director of Housing, Neighbourhood and Building Services"
Hotels And Motels,Travelodge,Travelodge Gb0000,Agency and Third Party Payments related expenditure,05/10/2018,600.83,"Director of Housing, Neighbourhood and Building Services"
Hotels And Motels,Travelodge,Travelodge Gb0000,Agency and Third Party Payments related expenditure,05/10/2018,47.25,"Director of Housing, Neighbourhood and Building Services"
Hotels And Motels,Travelodge,Travelodge Gb0000,Agency and Third Party Payments related expenditure,05/10/2018,600.83,"Director of Housing, Neighbourhood and Building Services"
Hotels And Motels,Travelodge,Travelodge Gb0000,Agency and Third Party Payments related expenditure,05/10/2018,189,"Director of Housing, Neighbourhood and Building Services"
Hotels And Motels,Travelodge,Travelodge Gb0000,Agency and Third Party Payments related expenditure,05/10/2018,843.33,"Director of Housing, Neighbourhood and Building Services"
Hotels And Motels,Lodging/Hotels/Motels/Resorts,Polygon Guest House,Agency and Third Party Payments related expenditure,05/10/2018,2625,"Director of Housing, Neighbourhood and Building Services"
Business To Business Other Sup,Uniforms & Commercial Clothing,Arco Ltd,Supplies and Services related expenditure,05/10/2018,11.05,"Director of Housing, Neighbourhood and Building Services"
Business To Business Eqpt/Furn,Book Stores,Amzn Mktp Uk,Supplies and Services related expenditure,05/10/2018,21.98,"Director of Housing, Neighbourhood and Building Services"
Entertainment,Member Clubs/Sport/Rec/Golf,Oxygen Freejumping,Supplies and Services related expenditure,05/10/2018,2.92,Director of Children's Services and Education
Entertainment,Member Clubs/Sport/Rec/Golf,Oxygen Freejumping,Supplies and Services related expenditure,05/10/2018,2.92,Director of Children's Services and Education
Eating And Drinking Places,Eating Places/Restaurants,Greggs Plc,Supplies and Services related expenditure,05/10/2018,0.58,Director of Children's Services and Education
Eating And Drinking Places,Eating Places/Restaurants,Greggs Plc,Supplies and Services related expenditure,05/10/2018,6.35,Director of Children's Services and Education
Entertainment,Member Clubs/Sport/Rec/Golf,Oxygen Freejumping,Supplies and Services related expenditure,05/10/2018,9.67,Director of Children's Services and Education
Automobile Services & Supplies,Automobile Dealers And Leasing,Pentagon Ltd Fareham,Transport related expenditure,05/10/2018,10.7,Director of Adult Services
Transportation,Passenger Railways,Ticketofficesale - Swtrains Hava,Transport related expenditure,05/10/2018,46.8,Director of Children's Services and Education
Transportation,Local Commuter Transport,Www.Wightlink.Co.Uk,Transport related expenditure,05/10/2018,51.75,"Director of Culture, Leisure & Regulatory Services"
Transportation,Local Commuter Transport,Www.Wightlink.Co.Uk,Transport related expenditure,05/10/2018,52,"Director of Culture, Leisure & Regulatory Services"
Medical,Lab/Med/Hospital Equipment,Wightman & Parrish,Premises related expenditure,05/10/2018,55.09,"Director of Culture, Leisure & Regulatory Services"
Transportation,Passenger Railways,Trainline,Transport related expenditure,05/10/2018,33.1,Director of Children's Services and Education
Business Expenses/Services,Books/Periodicals/Newspapers,Www.Wheelersbooks.Co.N,Supplies and Services related expenditure,05/10/2018,334.99,"Director of Culture, Leisure & Regulatory Services"
Business Expenses/Services,Books/Periodicals/Newspapers,Www.Wheelersbooks.Co.N,Supplies and Services related expenditure,05/10/2018,480.33,"Director of Culture, Leisure & Regulatory Services"
Other Supplies,Discount Stores,Www.Argos.Co.Uk,Supplies and Services related expenditure,05/10/2018,35.78,"Director of Culture, Leisure & Regulatory Services"
Entertainment,Public Golf Courses,Chichester Golf,Supplies and Services related expenditure,05/10/2018,12.92,Director of Children's Services and Education
Automobile Services & Supplies,Service Stations,Asda Petrol 4583,Transport related expenditure,05/10/2018,16.68,"Director of Housing, Neighbourhood and Building Services"
Retail,Grocery Stores/Supermarkets,Asda Stores,Supplies and Services related expenditure,05/10/2018,40.83,"Director of Housing, Neighbourhood and Building Services"
Medical,Lab/Med/Hospital Equipment,Wightman & Parrish,Premises related expenditure,05/10/2018,170.76,"Director of Housing, Neighbourhood and Building Services"
Transportation,"Parking Lots, Meters, Garages",3c_*portsmouth City Co,Supplies and Services related expenditure,05/10/2018,4.17,Director of Children's Services and Education
Transportation,Taxicabs/Limousines,Home James,Supplies and Services related expenditure,05/10/2018,9.63,Director of Children's Services and Education
Transportation,Local Commuter Transport,Hovertravel Ltd,Supplies and Services related expenditure,05/10/2018,62.92,Director of Children's Services and Education
Business To Business Eqpt/Furn,Book Stores,Amzn Mktp UK Amazon.Co.Uk,Supplies and Services related expenditure,05/10/2018,19.83,"Director of Housing, Neighbourhood and Building Services"
Transportation,Passenger Railways,Ticketofficesale - Swtrains Hava,Supplies and Services related expenditure,05/10/2018,9.8,"Director of Housing, Neighbourhood and Building Services"
Business Expenses/Services,News Dealers/Newsstands,Brunels,Supplies and Services related expenditure,05/10/2018,77,"Director of Housing, Neighbourhood and Building Services"
Business Expenses/Services,Postage Stamps,Postoffice Selfservice,Supplies and Services related expenditure,05/10/2018,10.1,Director of Community & Communication
Transportation,Passenger Railways,Ticketofficesale - Swtrainsports,Transport related expenditure,05/10/2018,10.7,"Director of Housing, Neighbourhood and Building Services"
Miscellaneous,Charitable/Soc Service Orgs,Salvation Army,Capital related expenditure,05/10/2018,265,Capital - Housing RA
Entertainment,Member Clubs/Sport/Rec/Golf,Oxygen Freejumping,Supplies and Services related expenditure,05/10/2018,29.58,Director of Children's Services and Education
Entertainment,Member Clubs/Sport/Rec/Golf,Oxygen Freejumping,Supplies and Services related expenditure,05/10/2018,2,Director of Children's Services and Education
Business To Business Eqpt/Furn,Book Stores,Amzn Mktp Uk,Supplies and Services related expenditure,05/10/2018,13.65,Director of Adult Services
Business To Business Eqpt/Furn,Book Stores,Amzn Mktp Uk,Supplies and Services related expenditure,05/10/2018,12.42,Director of Adult Services
Other Supplies,Department Stores,Southern Co-Op 0004,Supplies and Services related expenditure,05/10/2018,3,Director of Children's Services and Education
Eating And Drinking Places,Fast Food Restaurants,Costa Coffee 43042195,Supplies and Services related expenditure,05/10/2018,3.08,Director of Children's Services and Education
Eating And Drinking Places,Fast Food Restaurants,Costa Coffee 43042195,Supplies and Services related expenditure,05/10/2018,3.25,Director of Children's Services and Education
Eating And Drinking Places,Fast Food Restaurants,Micks Mobile Catering,Supplies and Services related expenditure,05/10/2018,9.25,Director of Children's Services and Education
Entertainment,Bands/Orchestras/Entertain,Bh Live Active - Mount,Supplies and Services related expenditure,05/10/2018,10.42,Director of Children's Services and Education
Transportation,Passenger Railways,Ticketofficesale - Swtrains Frat,Transport related expenditure,05/10/2018,86.9,"Director of Culture, Leisure & Regulatory Services"
Caterers Food,Caterers,Bfs Group,Supplies and Services related expenditure,05/10/2018,152.17,"Director of Culture, Leisure & Regulatory Services"
Caterers Food,Caterers,Bfs Group,Supplies and Services related expenditure,05/10/2018,604.02,"Director of Culture, Leisure & Regulatory Services"
Government,Govt Serv - Default,Portsmouth City Co,Transport related expenditure,05/10/2018,10.25,Chief Exec
Business To Business Eqpt/Furn,Book Stores,Amzn Mktp Uk,Supplies and Services related expenditure,05/10/2018,5.98,Director of Children's Services and Education
Business To Business Eqpt/Furn,Book Stores,Amzn Mktp Uk,Supplies and Services related expenditure,05/10/2018,6.68,Director of Children's Services and Education
Business To Business Eqpt/Furn,Book Stores,Amzn Mktp Uk,Supplies and Services related expenditure,05/10/2018,11.79,Director of Children's Services and Education
Business To Business Eqpt/Furn,Book Stores,Amzn Mktp Uk,Supplies and Services related expenditure,05/10/2018,27.52,Director of Children's Services and Education
Retail,Electronics Sales,Lambdatek,Supplies and Services related expenditure,05/10/2018,74.69,Director of Children's Services and Education
Other Supplies,Misc Speciality Retail,Value Products Ltd,Supplies and Services related expenditure,05/10/2018,41.4,Director of Children's Services and Education
Government,Govt Serv - Default,Portsmouth City Co,Transport related expenditure,05/10/2018,1.6,Director of Adult Services
Government,Govt Serv - Default,Portsmouth City Co,Transport related expenditure,05/10/2018,0.33,Director of Adult Services
Retail,Misc Food Stores - Default,M&s Simply Food - Ssp,Supplies and Services related expenditure,05/10/2018,5.06,Director of Children's Services and Education
Transportation,Passenger Railways,Selfserve Ticket,Transport related expenditure,05/10/2018,89.8,Director of Children's Services and Education
Hotels And Motels,Premier Travel Inns,Premier Inn 44536570,Supplies and Services related expenditure,05/10/2018,106.67,Director of Children's Services and Education
Hotels And Motels,Lodging/Hotels/Motels/Resorts,Southsea Rocks Hotel,Supplies and Services related expenditure,05/10/2018,308.33,Director of Children's Services and Education
Hotels And Motels,Premier Travel Inns,Premier Inn44537330,Supplies and Services related expenditure,05/10/2018,396.5,Director of Children's Services and Education
Hotels And Motels,Lodging/Hotels/Motels/Resorts,Hotel On Booking.Com,Supplies and Services related expenditure,05/10/2018,400.75,Director of Children's Services and Education
Miscellaneous,Fines,Combined Court Cen,Supplies and Services related expenditure,05/10/2018,121,"Director of Housing, Neighbourhood and Building Services"
Retail,Grocery Stores/Supermarkets,Aldi 30 775,Supplies and Services related expenditure,05/10/2018,2.27,Director of Adult Services
Automobile Services & Supplies,Service Stations,Texcoachhouses/stn,Supplies and Services related expenditure,05/10/2018,1.99,Director of Children's Services and Education
Retail,Grocery Stores/Supermarkets,Tesco Stores 5153,Supplies and Services related expenditure,05/10/2018,1.67,Director of Children's Services and Education
Retail,Grocery Stores/Supermarkets,Tesco Stores 5153,Supplies and Services related expenditure,05/10/2018,1.85,Director of Children's Services and Education
Miscellaneous,Sport/Recreational Camps,Petersfield Pay & Play,Supplies and Services related expenditure,05/10/2018,27,Director of Children's Services and Education
Automobile Services & Supplies,Service Stations,Shell Fratton 178,Transport related expenditure,05/10/2018,23.61,Director of Adult Services
Business To Business Facility/,Industrial Supplies - Def,Www.Arco.Co.Uk,Supplies and Services related expenditure,05/10/2018,186.3,Director of Adult Services
Miscellaneous,Veterinary Service,Portsmouth Vets 4 Pets L,Supplies and Services related expenditure,05/10/2018,110.83,Director of Children's Services and Education
Government,Govt Serv - Default,Www.Moneyclaim.Gov,Supplies and Services related expenditure,05/10/2018,60,Director of Community & Communication
Government,Govt Serv - Default,Www.Moneyclaim.Gov,Supplies and Services related expenditure,05/10/2018,655.6,Director of Community & Communication
Facilities/Repair Supplies,Drapery & Upholstery Stores,Poundstretcher 180,Supplies and Services related expenditure,05/10/2018,2.36,Director of Children's Services and Education
Facilities/Repair Supplies,Drapery & Upholstery Stores,Poundstretcher 180,Supplies and Services related expenditure,05/10/2018,12.13,Director of Children's Services and Education
Hotels And Motels,Travelodge,Travelodge Gb0000,Agency and Third Party Payments related expenditure,05/10/2018,21,"Director of Housing, Neighbourhood and Building Services"
Hotels And Motels,Travelodge,Travelodge Gb0000,Agency and Third Party Payments related expenditure,05/10/2018,165,"Director of Housing, Neighbourhood and Building Services"
Hotels And Motels,Travelodge,Travelodge Gb0000,Agency and Third Party Payments related expenditure,05/10/2018,73.5,"Director of Housing, Neighbourhood and Building Services"
Hotels And Motels,Travelodge,Travelodge Gb0000,Agency and Third Party Payments related expenditure,05/10/2018,490,"Director of Housing, Neighbourhood and Building Services"
Business To Business Facility/,Industrial Supplies - Def,Www.Arco.Co.Uk,Supplies and Services related expenditure,05/10/2018,10.15,Director of Regeneration
Government,Schools - Default,Tts Training Services,Employees related expenditure,05/10/2018,165,Director of Children's Services and Education
Transportation,"Parking Lots, Meters, Garages",3c_*portsmouth City Co,Supplies and Services related expenditure,05/10/2018,6.5,Director of Children's Services and Education
Auto/Vehicle Expenses,Auto Body Repair Shops,A & J Lawrence Acciden,Transport related expenditure,05/10/2018,27,"Director of Housing, Neighbourhood and Building Services"
Auto/Vehicle Expenses,Auto Body Repair Shops,A & J Lawrence Acciden,Transport related expenditure,05/10/2018,60,Director of Children's Services and Education
Auto/Vehicle Expenses,Auto Body Repair Shops,A & J Lawrence Acciden,Transport related expenditure,05/10/2018,271.91,"Director of Housing, Neighbourhood and Building Services"
Auto/Vehicle Expenses,Auto Body Repair Shops,A & J Lawrence Acciden,Transport related expenditure,05/10/2018,565.17,"Director of Housing, Neighbourhood and Building Services"
Auto/Vehicle Expenses,Auto Body Repair Shops,A & J Lawrence Acciden,Transport related expenditure,05/10/2018,50,Director of Adult Services
Auto/Vehicle Expenses,Auto Body Repair Shops,A & J Lawrence Acciden,Transport related expenditure,05/10/2018,106.98,"Director of Housing, Neighbourhood and Building Services"
Auto/Vehicle Expenses,Auto Body Repair Shops,A & J Lawrence Acciden,Transport related expenditure,05/10/2018,273.38,"Director of Culture, Leisure & Regulatory Services"
Auto/Vehicle Expenses,Auto Body Repair Shops,A & J Lawrence Acciden,Transport related expenditure,05/10/2018,295.4,"Director of Housing, Neighbourhood and Building Services"
Auto/Vehicle Expenses,Auto Body Repair Shops,A & J Lawrence Acciden,Transport related expenditure,05/10/2018,17,"Director of Housing, Neighbourhood and Building Services"
Auto/Vehicle Expenses,Auto Body Repair Shops,A & J Lawrence Acciden,Transport related expenditure,05/10/2018,345.11,"Director of Housing, Neighbourhood and Building Services"
Auto/Vehicle Expenses,Auto Body Repair Shops,A & J Lawrence Acciden,Transport related expenditure,05/10/2018,303.79,"Director of Housing, Neighbourhood and Building Services"
Auto/Vehicle Expenses,Auto Body Repair Shops,A & J Lawrence Acciden,Transport related expenditure,05/10/2018,202.06,"Director of Housing, Neighbourhood and Building Services"
Auto/Vehicle Expenses,Auto Body Repair Shops,A & J Lawrence Acciden,Transport related expenditure,05/10/2018,304.8,Director of Children's Services and Education
Auto/Vehicle Expenses,Auto Body Repair Shops,A & J Lawrence Acciden,Transport related expenditure,05/10/2018,52,Director of Adult Services
Auto/Vehicle Expenses,Auto Body Repair Shops,A & J Lawrence Acciden,Transport related expenditure,05/10/2018,50,Director of Adult Services
Auto/Vehicle Expenses,Auto Body Repair Shops,A & J Lawrence Acciden,Transport related expenditure,05/10/2018,37.5,"Director of Housing, Neighbourhood and Building Services"
Auto/Vehicle Expenses,Auto Body Repair Shops,A & J Lawrence Acciden,Transport related expenditure,05/10/2018,192,"Director of Housing, Neighbourhood and Building Services"
Transportation,Passenger Railways,Selfserve Ticket,Transport related expenditure,05/10/2018,74.1,"Director of HR, Legal,  Audit & Performance"
Retail,Grocery Stores/Supermarkets,Tesco Store 3055,Supplies and Services related expenditure,05/10/2018,51.19,Director of Children's Services and Education
Business To Business Other Sup,Uniforms & Commercial Clothing,Alexandra Website,Supplies and Services related expenditure,05/10/2018,35.7,Director of Adult Services
Facilities/Repair Supplies,Lumber/Build. Supply Stores,B & Q 1260,Premises related expenditure,05/10/2018,33.54,"Director of Culture, Leisure & Regulatory Services"
Miscellaneous,Charitable/Soc Service Orgs,Salvation Army,Capital related expenditure,05/10/2018,515,Capital - Housing RA
Retail,Grocery Stores/Supermarkets,Tesco Store 3055,Supplies and Services related expenditure,05/10/2018,89.37,Director of Children's Services and Education
Retail,Grocery Stores/Supermarkets,Tesco Store 3055,Supplies and Services related expenditure,05/10/2018,31.15,Director of Children's Services and Education
Automobile Services & Supplies,Service Stations,Malthurst Petroleu,Transport related expenditure,05/10/2018,68.6,"Director of Housing, Neighbourhood and Building Services"
Business To Business Eqpt/Furn,Commercial Furniture,Demco Europe,Supplies and Services related expenditure,05/10/2018,73.99,"Director of Culture, Leisure & Regulatory Services"
Business To Business Eqpt/Furn,Book Stores,Amzn Mktp Uk,Supplies and Services related expenditure,05/10/2018,9.91,"Director of Housing, Neighbourhood and Building Services"
Hotels And Motels,Holiday Inn,Holiday Inn Express,Supplies and Services related expenditure,05/10/2018,52.54,Capital - Traffic & Transportation
Transportation,Passenger Railways,Lner Web Sales,Transport related expenditure,05/10/2018,168.5,Capital - Traffic & Transportation
Entertainment,Bands/Orchestras/Entertain,Bh Live Active - Mount,Supplies and Services related expenditure,05/10/2018,2,Director of Children's Services and Education
Entertainment,Bands/Orchestras/Entertain,Bh Live Active - Mount,Supplies and Services related expenditure,05/10/2018,2.08,Director of Children's Services and Education
Caterers Food,Caterers,Bookerecomm,Supplies and Services related expenditure,05/10/2018,123.93,"Director of Housing, Neighbourhood and Building Services"
Business To Business Eqpt/Furn,Book Stores,Amzn Mktp Uk,Supplies and Services related expenditure,05/10/2018,34.07,Director of Children's Services and Education
Facilities/Repair Supplies,Lumber/Build. Supply Stores,Www.Rjpryce.Co.Uk,Supplies and Services related expenditure,05/10/2018,55.74,Director of Children's Services and Education
Facilities/Repair Supplies,Lumber/Build. Supply Stores,B & Q 1260,Supplies and Services related expenditure,05/10/2018,11.34,"Director of Housing, Neighbourhood and Building Services"
Business Services,Business Services - Default,Fast Key Services Limi,Supplies and Services related expenditure,05/10/2018,11.03,Director of Children's Services and Education
Business To Business Eqpt/Furn,Stationery/Office Supplies,Yorkshire Purchasing O,Supplies and Services related expenditure,05/10/2018,29.98,Director of Children's Services and Education
Business Expenses/Services,Stationery Stores,Www.Tts-Groups.Co.Uk,Supplies and Services related expenditure,05/10/2018,103.95,Director of Children's Services and Education
Transportation,Local Commuter Transport,Www.Wightlink.Co.Uk,Transport related expenditure,05/10/2018,19.8,"Director of HR, Legal,  Audit & Performance"
Eating And Drinking Places,Fast Food Restaurants,Starbucks,Supplies and Services related expenditure,05/10/2018,3.99,Solent LEP
Other Supplies,Department Stores,Southern Co-Op 0325,Supplies and Services related expenditure,05/10/2018,10.7,Solent LEP
Entertainment,Member Clubs/Sport/Rec/Golf,Horizon Leisure Trust,Agency and Third Party Payments related expenditure,05/10/2018,2.67,Director of Children's Services and Education
Retail,Grocery Stores/Supermarkets,Tesco Store 3055,Supplies and Services related expenditure,05/10/2018,2.5,Director of Children's Services and Education
Retail,Grocery Stores/Supermarkets,Tesco Store 3055,Supplies and Services related expenditure,05/10/2018,3,Director of Children's Services and Education
Entertainment,Tourist Attractions And Xhbt,Portchester Castle,Supplies and Services related expenditure,05/10/2018,8.58,Director of Children's Services and Education
Miscellaneous,Other Direct Marketers,Findel Ed Ltd,Supplies and Services related expenditure,05/10/2018,538.5,Director of Children's Services and Education
Eating And Drinking Places,Fast Food Restaurants,Micks Mobile Catering,Supplies and Services related expenditure,05/10/2018,4.5,Director of Children's Services and Education
Eating And Drinking Places,Eating Places/Restaurants,Deep Blue Restaurant L,Supplies and Services related expenditure,05/10/2018,7.42,Director of Children's Services and Education
Entertainment,Bands/Orchestras/Entertain,Bowlplex,Supplies and Services related expenditure,05/10/2018,8.75,Director of Children's Services and Education
Entertainment,Bands/Orchestras/Entertain,Bowlplex,Supplies and Services related expenditure,05/10/2018,8.75,Director of Children's Services and Education
Entertainment,Bands/Orchestras/Entertain,Bowlplex,Supplies and Services related expenditure,05/10/2018,14.98,Director of Children's Services and Education
Business Services,Business Services - Default,Vivid Housing Ltd,Premises related expenditure,05/10/2018,290.22,Director of Regeneration
Business Services,Business Services - Default,Vivid Housing Ltd,Premises related expenditure,05/10/2018,290.22,Director of Regeneration
Business To Business Eqpt/Furn,Book Stores,Amzn Mktp Uk,Capital related expenditure,05/10/2018,1.49,Director of Regeneration
Business To Business Eqpt/Furn,Book Stores,Amzn Mktp Uk,Capital related expenditure,05/10/2018,5.33,Director of Regeneration
Government,Govt Serv - Default,2maa006869037 Td E-Pmt,Supplies and Services related expenditure,05/10/2018,62.5,Director of Children's Services and Education
Business To Business Eqpt/Furn,Book Stores,Amzn Mktp Uk,Supplies and Services related expenditure,05/10/2018,4.08,Director of Children's Services and Education
Business To Business Eqpt/Furn,Book Stores,Amzn Mktp Uk,Supplies and Services related expenditure,05/10/2018,5.58,Director of Children's Services and Education
Retail,Antique Shops,Paypal,Supplies and Services related expenditure,05/10/2018,43.73,Director of Children's Services and Education
Facilities/Repair Supplies,Hardware Stores,Rg Warwick Trading,Supplies and Services related expenditure,05/10/2018,166.67,Director of Adult Services
Business Expenses/Services,Stationery Stores,Www Prindo Co Uk,Supplies and Services related expenditure,05/10/2018,5.79,Director of Regeneration
Business To Business Eqpt/Furn,Book Stores,Amzn Mktp Uk,Supplies and Services related expenditure,05/10/2018,26.93,Director of Regeneration
Retail,Grocery Stores/Supermarkets,Co-Op Group Food,Supplies and Services related expenditure,05/10/2018,5.92,Director of Children's Services and Education
Business Services,Advertising Services,Paypal,Supplies and Services related expenditure,05/10/2018,10,Director of Children's Services and Education
Government,Govt Serv - Default,Disclosure & Barring,Supplies and Services related expenditure,05/10/2018,13,Director of Children's Services and Education
Other Supplies,Misc Speciality Retail,Www.Careshop.Co.Uk,Supplies and Services related expenditure,05/10/2018,179.56,Director of Adult Services
Facilities/Repair Supplies,Lumber/Build. Supply Stores,Homebase Ltd 207,Supplies and Services related expenditure,05/10/2018,16.67,Director of Children's Services and Education
Business Services,Advertising Services,Facebk N4v2yhejf2,Supplies and Services related expenditure,06/10/2018,40,"Director of Culture, Leisure & Regulatory Services"
Retail,Grocery Stores/Supermarkets,Lidl UK Waterlooville,Supplies and Services related expenditure,06/10/2018,0.92,Director of Children's Services and Education
Retail,Grocery Stores/Supermarkets,Www.Iceland.Co.Uk,Supplies and Services related expenditure,06/10/2018,54.25,Director of Adult Services
Government,Govt Serv - Default,Portsmouth City Co,Supplies and Services related expenditure,06/10/2018,4,Director of Regeneration
Business To Business Eqpt/Furn,Book Stores,Amzn Mktp Uk,Supplies and Services related expenditure,06/10/2018,10.39,Director of Children's Services and Education
Business To Business Eqpt/Furn,Book Stores,Amzn Mktp Uk,Supplies and Services related expenditure,06/10/2018,11.28,Director of Children's Services and Education
Business To Business Eqpt/Furn,Book Stores,Amzn Mktp Uk,Supplies and Services related expenditure,06/10/2018,15.94,Director of Children's Services and Education
Retail,Pet Stores/Food & Supply,Jolleys The Pet Supers,Supplies and Services related expenditure,06/10/2018,10.41,"Director of Housing, Neighbourhood and Building Services"
Facilities/Repair Supplies,Lumber/Build. Supply Stores,B & Q 1238,Supplies and Services related expenditure,06/10/2018,17.97,"Director of Housing, Neighbourhood and Building Services"
Facilities/Repair Supplies,Lumber/Build. Supply Stores,B & Q 1238,Premises related expenditure,06/10/2018,20.6,"Director of Housing, Neighbourhood and Building Services"
Miscellaneous,Other Direct Marketers,Amazon.Co.Uk,Supplies and Services related expenditure,06/10/2018,152.43,Director of Children's Services and Education
Retail,Grocery Stores/Supermarkets,Tesco Store 3048,Supplies and Services related expenditure,06/10/2018,6,Director of Community & Communication
Other Supplies,Discount Stores,Argos Farlington I,Supplies and Services related expenditure,06/10/2018,16.67,Director of Children's Services and Education
Retail,Sporting Goods Stores,Portsmouth Fc,Agency and Third Party Payments related expenditure,06/10/2018,29,Director of Children's Services and Education
Entertainment,Member Clubs/Sport/Rec/Golf,Portsmouth Fc,Agency and Third Party Payments related expenditure,06/10/2018,25,Director of Children's Services and Education
Transportation,"Parking Lots, Meters, Garages",Gunwharf Quays,Transport related expenditure,06/10/2018,5,Director of Children's Services and Education
Eating And Drinking Places,Fast Food Restaurants,McDonalds,Supplies and Services related expenditure,06/10/2018,3.32,Director of Children's Services and Education
Eating And Drinking Places,Fast Food Restaurants,McDonalds,Supplies and Services related expenditure,06/10/2018,2.29,Director of Children's Services and Education
Transportation,Local Commuter Transport,Wightlink,Transport related expenditure,06/10/2018,9.9,Director of Children's Services and Education
Entertainment,Bands/Orchestras/Entertain,Bowlplex,Agency and Third Party Payments related expenditure,06/10/2018,12.65,Director of Children's Services and Education
Eating And Drinking Places,Eating Places/Restaurants,Burger King,Agency and Third Party Payments related expenditure,06/10/2018,25.71,Director of Children's Services and Education
Business To Business Eqpt/Furn,Book Stores,Amzn Mktp Uk,Supplies and Services related expenditure,06/10/2018,16.25,Director of Regeneration
Business To Business Eqpt/Furn,Book Stores,Amzn Mktp Uk,Supplies and Services related expenditure,06/10/2018,18.93,Director of Regeneration
Retail,Jewelry Stores,Paypal,Supplies and Services related expenditure,06/10/2018,3.2,Director of Children's Services and Education
Business To Business Eqpt/Furn,Book Stores,Amzn Mktp Uk,Supplies and Services related expenditure,07/10/2018,113.19,"Director of Housing, Neighbourhood and Building Services"
Other Supplies,Department Stores,Southern Co-Op 0008,Supplies and Services related expenditure,07/10/2018,4.49,Director of Children's Services and Education
Eating And Drinking Places,Fast Food Restaurants,McDonalds,Supplies and Services related expenditure,07/10/2018,3.23,Director of Children's Services and Education
Eating And Drinking Places,Fast Food Restaurants,McDonalds,Supplies and Services related expenditure,07/10/2018,2.29,Director of Children's Services and Education
Facilities/Repair Supplies,Lumber/Build. Supply Stores,Homebase Ltd 661,Supplies and Services related expenditure,07/10/2018,7.08,"Director of Housing, Neighbourhood and Building Services"
Retail,Grocery Stores/Supermarkets,Lidl UK Fareham,Supplies and Services related expenditure,07/10/2018,3.36,Director of Adult Services
Miscellaneous,Other Direct Marketers,Amazon.Co.Uk,Premises related expenditure,07/10/2018,9.63,Director of Community & Communication
Business To Business Eqpt/Furn,Book Stores,Amzn Mktp Uk,Supplies and Services related expenditure,07/10/2018,17.8,Director of Children's Services and Education
Facilities/Repair Supplies,Hardware Stores,Home Bargains,Supplies and Services related expenditure,07/10/2018,5.95,"Director of Housing, Neighbourhood and Building Services"
Business To Business Eqpt/Furn,Book Stores,Amzn Mktp Uk,Supplies and Services related expenditure,07/10/2018,12.9,Director of Children's Services and Education
Business To Business Eqpt/Furn,Book Stores,Amzn Mktp Uk,Supplies and Services related expenditure,07/10/2018,11.58,Director of Children's Services and Education
Business To Business Eqpt/Furn,Book Stores,Amzn Mktp Uk,Supplies and Services related expenditure,07/10/2018,25.79,Director of Children's Services and Education
Other Supplies,Discount Stores,B&m Retail,Supplies and Services related expenditure,07/10/2018,20.83,Director of Children's Services and Education
Retail,Grocery Stores/Supermarkets,Wm Morrisons Store,Supplies and Services related expenditure,07/10/2018,7.07,Director of Children's Services and Education
Retail,Grocery Stores/Supermarkets,Wm Morrisons Store,Supplies and Services related expenditure,07/10/2018,20,Director of Children's Services and Education
Retail,Grocery Stores/Supermarkets,Wm Morrisons Store,Supplies and Services related expenditure,07/10/2018,24.82,Director of Children's Services and Education
Business To Business Eqpt/Furn,Book Stores,Amzn Mktp Uk,Supplies and Services related expenditure,07/10/2018,7.88,Director of Children's Services and Education
Business To Business Eqpt/Furn,Book Stores,Amzn Mktp Uk,Supplies and Services related expenditure,07/10/2018,94.51,Director of Children's Services and Education
Business To Business Eqpt/Furn,Book Stores,Amzn Mktp Uk,Supplies and Services related expenditure,07/10/2018,11.99,Director of Children's Services and Education
Miscellaneous,Other Direct Marketers,Amazon.Co.Uk,Supplies and Services related expenditure,07/10/2018,42.96,Director of Adult Services
Business To Business Eqpt/Furn,Book Stores,Amzn Mktp Uk,Employees related expenditure,07/10/2018,43.73,Director of Children's Services and Education
Business To Business Eqpt/Furn,Book Stores,Amzn Mktp Uk,Supplies and Services related expenditure,07/10/2018,19.98,"Director of HR, Legal,  Audit & Performance"
Business To Business Eqpt/Furn,Book Stores,Amzn Mktp Uk,Supplies and Services related expenditure,07/10/2018,8.14,Director of Children's Services and Education
Other Supplies,Misc Speciality Retail,Paypal,Supplies and Services related expenditure,07/10/2018,-50,Director of Children's Services and Education
Retail,Cosmetic Stores,Paypal,Supplies and Services related expenditure,07/10/2018,13,Director of Children's Services and Education
Retail,Grocery Stores/Supermarkets,Asda Stores,Supplies and Services related expenditure,07/10/2018,3.33,Director of Children's Services and Education
Retail,Grocery Stores/Supermarkets,Asda Stores,Supplies and Services related expenditure,07/10/2018,10.08,Director of Children's Services and Education
Business Expenses/Services,Stationery Stores,Banner Group Ltd,Supplies and Services related expenditure,04/10/2018,338.73,"Director of Housing, Neighbourhood and Building Services"
Business Expenses/Services,Stationery Stores,Banner Group Ltd,Supplies and Services related expenditure,04/10/2018,42.9,Director of Adult Services
Business Expenses/Services,Stationery Stores,Banner Group Ltd,Supplies and Services related expenditure,04/10/2018,34.2,Director of Finance & IT
Business Expenses/Services,Stationery Stores,Banner Group Ltd,Supplies and Services related expenditure,04/10/2018,28.37,Director of Children's Services and Education
Business Expenses/Services,Stationery Stores,Banner Group Ltd,Supplies and Services related expenditure,04/10/2018,17.47,"Director of Housing, Neighbourhood and Building Services"
Business Expenses/Services,Stationery Stores,Banner Group Ltd,Supplies and Services related expenditure,04/10/2018,105.31,"Director of Housing, Neighbourhood and Building Services"
Business Expenses/Services,Stationery Stores,Banner Group Ltd,Supplies and Services related expenditure,04/10/2018,131.3,"Director of Housing, Neighbourhood and Building Services"
Business Expenses/Services,Stationery Stores,Banner Group Ltd,Supplies and Services related expenditure,04/10/2018,49.86,"Director of Housing, Neighbourhood and Building Services"
Business Expenses/Services,Stationery Stores,Banner Group Ltd,Supplies and Services related expenditure,04/10/2018,119.1,Director of Finance & IT
Business Expenses/Services,Stationery Stores,Banner Group Ltd,Supplies and Services related expenditure,04/10/2018,157.4,Director of Finance & IT
Business Expenses/Services,Stationery Stores,Banner Group Ltd,Supplies and Services related expenditure,04/10/2018,10.25,Director of Finance & IT
Business Expenses/Services,Stationery Stores,Banner Group Ltd,Supplies and Services related expenditure,04/10/2018,9.2,Director of Children's Services and Education
Business Expenses/Services,Stationery Stores,Banner Group Ltd,Supplies and Services related expenditure,04/10/2018,61.54,Director of Children's Services and Education
Business Expenses/Services,Stationery Stores,Banner Group Ltd,Supplies and Services related expenditure,04/10/2018,72.16,Director of Children's Services and Education
Business Expenses/Services,Stationery Stores,Banner Group Ltd,Supplies and Services related expenditure,05/10/2018,2.83,Director of Portsmouth International Port
Business Expenses/Services,Stationery Stores,Banner Group Ltd,Supplies and Services related expenditure,05/10/2018,176.56,Director of Portsmouth International Port
Business Expenses/Services,Stationery Stores,Banner Group Ltd,Supplies and Services related expenditure,05/10/2018,35.72,"Director of Culture, Leisure & Regulatory Services"
Business Expenses/Services,Stationery Stores,Banner Group Ltd,Supplies and Services related expenditure,05/10/2018,117.63,"Director of Culture, Leisure & Regulatory Services"
Business Expenses/Services,Stationery Stores,Banner Group Ltd,Supplies and Services related expenditure,05/10/2018,4.1,Director of Adult Services
Business Expenses/Services,Stationery Stores,Banner Group Ltd,Supplies and Services related expenditure,05/10/2018,30.58,Director of Adult Services
Business Expenses/Services,Stationery Stores,Banner Group Ltd,Supplies and Services related expenditure,05/10/2018,19.5,Director of Children's Services and Education
Business Expenses/Services,Stationery Stores,Banner Group Ltd,Supplies and Services related expenditure,05/10/2018,102.57,Director of Children's Services and Education
Other Supplies,Misc Speciality Retail,Amazon.Co.Uk Amazon.Co.Uk,Supplies and Services related expenditure,07/10/2018,15.98,Director of Children's Services and Education
Business To Business Eqpt/Furn,Book Stores,Amzn Mktp UK Amazon.Co.Uk,Supplies and Services related expenditure,07/10/2018,6.99,Director of Children's Services and Education
Other Supplies,Misc Speciality Retail,Amazon.Co.Uk Amazon.Co.Uk,Supplies and Services related expenditure,07/10/2018,34.77,Director of Children's Services and Education
Retail,Cosmetic Stores,Paypal,Supplies and Services related expenditure,07/10/2018,-13,Director of Children's Services and Education
Transportation,Passenger Railways,Ticketofficesale - Swtrains Frat,Supplies and Services related expenditure,08/10/2018,8.4,Director of Children's Services and Education
Facilities/Repair Supplies,Lumber/Build. Supply Stores,B & Q 1260,Supplies and Services related expenditure,08/10/2018,4.17,Director of Adult Services
Auto/Vehicle Expenses,Auto Service Shops/Non Dealer,Ats Euromaster Ltd,Transport related expenditure,08/10/2018,49.99,"Director of Housing, Neighbourhood and Building Services"
Auto/Vehicle Expenses,Auto Service Shops/Non Dealer,Ats Euromaster Ltd,Transport related expenditure,08/10/2018,50,"Director of Housing, Neighbourhood and Building Services"
Transportation,Passenger Railways,Trainline,Transport related expenditure,08/10/2018,116.1,Director of Children's Services and Education
Transportation,"Parking Lots, Meters, Garages",Queen Alexandra Hospit,Transport related expenditure,08/10/2018,2.5,Director of Public Health
Eating And Drinking Places,Eating Places/Restaurants,Coffee Cup,Supplies and Services related expenditure,08/10/2018,4.67,Director of Children's Services and Education
Auto/Vehicle Rentals,Motor Home/Rv Rentals,Southsea Leisure Park,Agency and Third Party Payments related expenditure,08/10/2018,1306,Director of Children's Services and Education
Hotels And Motels,Lodging/Hotels/Motels/Resorts,Www.Walrussocial.Com,Supplies and Services related expenditure,08/10/2018,14.58,Director of Finance & IT
Transportation,Passenger Railways,Sw Railway,Transport related expenditure,08/10/2018,22.3,Director of Finance & IT
Retail,Grocery Stores/Supermarkets,Tesco Store 3055,Supplies and Services related expenditure,08/10/2018,53.2,Director of Children's Services and Education
Retail,Grocery Stores/Supermarkets,Tesco Store 3055,Supplies and Services related expenditure,08/10/2018,28.8,Director of Children's Services and Education
Business To Business Facility/,Industrial Supplies - Def,Www.Arco.Co.Uk,Supplies and Services related expenditure,08/10/2018,125,"Director of Housing, Neighbourhood and Building Services"
Facilities Maintenance,Clean/Maint/Janitoral Serv,Candor Services Ltd,Supplies and Services related expenditure,08/10/2018,2747.45,"Director of Housing, Neighbourhood and Building Services"
Business Services,Business Services - Default,The Brooks,Transport related expenditure,08/10/2018,4.2,Director of Children's Services and Education
Auto/Vehicle Expenses,Tire Retread/Repair Shops,Setyres,Transport related expenditure,08/10/2018,126,"Director of Culture, Leisure & Regulatory Services"
Retail,Grocery Stores/Supermarkets,Asda Groceries Online,Supplies and Services related expenditure,08/10/2018,47.62,Director of Children's Services and Education
Miscellaneous,Other Direct Marketers,Amazon.Co.Uk,Supplies and Services related expenditure,08/10/2018,19.98,Director of Children's Services and Education
Retail,Grocery Stores/Supermarkets,Tesco Stores 4579,Supplies and Services related expenditure,08/10/2018,10.7,Director of Children's Services and Education
Retail,Grocery Stores/Supermarkets,Tesco Stores 4579,Supplies and Services related expenditure,08/10/2018,84.8,Director of Children's Services and Education
Business To Business Facility/,Hardware Equipment/Supplies,Pompey Hardware,Supplies and Services related expenditure,08/10/2018,12.5,"Director of Culture, Leisure & Regulatory Services"
Retail,Grocery Stores/Supermarkets,Tesco Stores 4579,Supplies and Services related expenditure,08/10/2018,175.08,Director of Children's Services and Education
Retail,Grocery Stores/Supermarkets,Tesco Stores 4579,Supplies and Services related expenditure,08/10/2018,33.05,Director of Children's Services and Education
Retail,Grocery Stores/Supermarkets,Asda Groceries Online,Supplies and Services related expenditure,08/10/2018,114.47,Director of Children's Services and Education
Eating And Drinking Places,Eating Places/Restaurants,Subway,Supplies and Services related expenditure,08/10/2018,3.58,Director of Children's Services and Education
Retail,Sporting Goods Stores,Portsmouth Golf Centre,Supplies and Services related expenditure,08/10/2018,4.58,Director of Children's Services and Education
Retail,Sporting Goods Stores,Portsmouth Golf Centre,Supplies and Services related expenditure,08/10/2018,4.58,Director of Children's Services and Education
Retail,Sporting Goods Stores,Portsmouth Golf Centre,Supplies and Services related expenditure,08/10/2018,4.58,Director of Children's Services and Education
Transportation,Passenger Railways,Selfserve Ticket,Supplies and Services related expenditure,08/10/2018,4.08,"Director of Housing, Neighbourhood and Building Services"
Business To Business Facility/,Industrial Supplies - Def,Arco Ltd,Supplies and Services related expenditure,08/10/2018,30.72,Director of Regeneration
Medical,Lab/Med/Hospital Equipment,Wightman & Parrish,Premises related expenditure,08/10/2018,228.66,"Director of Housing, Neighbourhood and Building Services"
Business Services,Advertising Services,Facebk 54d8qhs7z2,Supplies and Services related expenditure,08/10/2018,2.05,Director of Community & Communication
Business Services,Advertising Services,Facebk 34d8qhs7z2,Supplies and Services related expenditure,08/10/2018,147.95,Director of Community & Communication
Transportation,Passenger Railways,Trainline,Transport related expenditure,08/10/2018,154.18,Director of Children's Services and Education
Business To Business Eqpt/Furn,Book Stores,Book People Voucher,Supplies and Services related expenditure,08/10/2018,10,Director of Children's Services and Education
Miscellaneous,Elementary/Secondary School,Paypal,Supplies and Services related expenditure,08/10/2018,100,Director of Children's Services and Education
Retail,Hobby/Toy/Game Stores,Cardinal Education,Supplies and Services related expenditure,08/10/2018,125.7,Director of Children's Services and Education
Transportation,Passenger Railways,Sw Railway,Supplies and Services related expenditure,08/10/2018,41.5,"Director of Culture, Leisure & Regulatory Services"
Other Supplies,Catalog Merchant,Www.Osbornebooks.Co.Uk,Supplies and Services related expenditure,08/10/2018,22.85,"Director of Housing, Neighbourhood and Building Services"
Eating And Drinking Places,Eating Places/Restaurants,Subway,Supplies and Services related expenditure,08/10/2018,4.25,Director of Children's Services and Education
Retail,Sporting Goods Stores,Portsmouth Golf Centre,Supplies and Services related expenditure,08/10/2018,5.5,Director of Children's Services and Education
Eating And Drinking Places,Eating Places/Restaurants,Subway Ocean Park,Supplies and Services related expenditure,08/10/2018,4.83,Director of Children's Services and Education
Eating And Drinking Places,Eating Places/Restaurants,Canoe Lake Leisure Ltd,Supplies and Services related expenditure,08/10/2018,8,Director of Children's Services and Education
Government,Schools - Default,Vue*ncs Citb Hs&e Test,Employees related expenditure,08/10/2018,21,"Director of Housing, Neighbourhood and Building Services"
Transportation,Local Commuter Transport,Hovertravel Ltd,Supplies and Services related expenditure,08/10/2018,23.9,Director of Children's Services and Education
Retail,Grocery Stores/Supermarkets,Tesco Stores 5153,Supplies and Services related expenditure,08/10/2018,8.75,Director of Children's Services and Education
Retail,Music Stores/Pianos,Www.Normans.Co.Uk,Supplies and Services related expenditure,08/10/2018,238.29,Director of Children's Services and Education
Retail,Misc Food Stores - Default,Eastney Convenience St,Supplies and Services related expenditure,08/10/2018,1.24,Director of Adult Services
Retail,Grocery Stores/Supermarkets,Asda Stores,Supplies and Services related expenditure,08/10/2018,5.71,Director of Community & Communication
Retail,Grocery Stores/Supermarkets,Asda Stores,Supplies and Services related expenditure,08/10/2018,0.09,Director of Community & Communication
Business To Business Services,Misc Publishing & Printing,"Signs, Design & Print",Supplies and Services related expenditure,08/10/2018,300,Director of Community & Communication
Transportation,Passenger Railways,Ticketofficesale - Swtrainsports,Transport related expenditure,08/10/2018,40.6,"Director of Housing, Neighbourhood and Building Services"
Freight/Courier/Warehouse Svcs,Public Warehousing,Big Yellow S S Portsmout,Premises related expenditure,08/10/2018,116.68,"Director of Housing, Neighbourhood and Building Services"
Retail,Grocery Stores/Supermarkets,Asda Stores,Supplies and Services related expenditure,08/10/2018,29.16,"Director of Housing, Neighbourhood and Building Services"
Transportation,Passenger Railways,Ticketofficesale - Swtrains Frat,Transport related expenditure,08/10/2018,95,"Director of Housing, Neighbourhood and Building Services"
Retail,Electronics Sales,Currys Online,Premises related expenditure,08/10/2018,208.33,Director of Children's Services and Education
Retail,Electronics Sales,Currys Online,Premises related expenditure,08/10/2018,20,Director of Children's Services and Education
Retail,Electronics Sales,Currys Online,Supplies and Services related expenditure,08/10/2018,20,Director of Children's Services and Education
Eating And Drinking Places,Fast Food Restaurants,Costa Coffee 43042195,Supplies and Services related expenditure,08/10/2018,0.38,Director of Children's Services and Education
Eating And Drinking Places,Fast Food Restaurants,Costa Coffee 43042195,Supplies and Services related expenditure,08/10/2018,4.9,Director of Children's Services and Education
Eating And Drinking Places,Eating Places/Restaurants,Subway,Supplies and Services related expenditure,08/10/2018,2.42,Director of Children's Services and Education
Eating And Drinking Places,Eating Places/Restaurants,Subway,Supplies and Services related expenditure,08/10/2018,4.1,Director of Children's Services and Education
Business To Business Eqpt/Furn,Book Stores,Amzn Mktp Uk,Supplies and Services related expenditure,08/10/2018,17.46,Director of Portsmouth International Port
Medical,Lab/Med/Hospital Equipment,Wightman & Parrish Ltd,Supplies and Services related expenditure,08/10/2018,15.28,"Director of Housing, Neighbourhood and Building Services"
Business To Business Services,Misc Publishing & Printing,Www.Blacksheeppress.Co.U,Supplies and Services related expenditure,08/10/2018,37,Director of Children's Services and Education
Transportation,Passenger Railways,Ticketofficesale - Swtrainsports,Transport related expenditure,08/10/2018,17.83,Director of Children's Services and Education
Retail,Grocery Stores/Supermarkets,Asda Stores,Supplies and Services related expenditure,08/10/2018,0.79,Director of Adult Services
Business To Business Eqpt/Furn,Book Stores,Amzn Mktp Uk,Supplies and Services related expenditure,08/10/2018,17.92,Director of Children's Services and Education
Miscellaneous,Charitable/Soc Service Orgs,British Red Cross,Employees related expenditure,08/10/2018,398,Director of Portsmouth International Port
Government,Govt Serv - Default,Portsmouth City Co,Transport related expenditure,08/10/2018,10.25,Chief Exec
Retail,Grocery Stores/Supermarkets,Asda Groceries Online,Supplies and Services related expenditure,08/10/2018,38.15,Director of Children's Services and Education
Retail,Grocery Stores/Supermarkets,Asda Groceries Online,Supplies and Services related expenditure,08/10/2018,-0.55,Director of Children's Services and Education
Business To Business Eqpt/Furn,Book Stores,Amzn Mktp Uk,Supplies and Services related expenditure,08/10/2018,3.56,Director of Children's Services and Education
Business To Business Eqpt/Furn,Book Stores,Amzn Mktp Uk,Supplies and Services related expenditure,08/10/2018,4.9,Director of Children's Services and Education
Retail,Grocery Stores/Supermarkets,Asda Groceries Online,Supplies and Services related expenditure,08/10/2018,54.52,Director of Children's Services and Education
Retail,Grocery Stores/Supermarkets,Asda Groceries Online,Supplies and Services related expenditure,08/10/2018,5.78,Director of Children's Services and Education
Retail,Grocery Stores/Supermarkets,Asda Groceries Online,Supplies and Services related expenditure,08/10/2018,56.67,Director of Children's Services and Education
Retail,Grocery Stores/Supermarkets,Asda Groceries Online,Supplies and Services related expenditure,08/10/2018,5.5,Director of Children's Services and Education
Retail,Grocery Stores/Supermarkets,Asda Stores,Supplies and Services related expenditure,08/10/2018,5.25,Director of Adult Services
Retail,Grocery Stores/Supermarkets,Asda Stores,Supplies and Services related expenditure,08/10/2018,9.17,Director of Children's Services and Education
Retail,Grocery Stores/Supermarkets,Tesco Store 3048,Supplies and Services related expenditure,08/10/2018,9.54,Director of Children's Services and Education
Miscellaneous,Fines,Combined Court Cen,Supplies and Services related expenditure,08/10/2018,121,"Director of Housing, Neighbourhood and Building Services"
Medical,Lab/Med/Hospital Equipment,Nrs Healthcare,Supplies and Services related expenditure,08/10/2018,36.14,Director of Adult Services
Retail,Grocery Stores/Supermarkets,3s Convenience Store N,Supplies and Services related expenditure,08/10/2018,1.65,Director of Children's Services and Education
Transportation,Passenger Railways,Ticketofficesale - Swtrainsports,Transport related expenditure,08/10/2018,248.4,"Director of HR, Legal,  Audit & Performance"
Transportation,Passenger Railways,Sw Railway,Transport related expenditure,08/10/2018,89.8,Director of Children's Services and Education
Government,Colleges/Univ/Jc/Profession,Gls Educational Su,Supplies and Services related expenditure,08/10/2018,14.99,Director of Children's Services and Education
Business To Business Eqpt/Furn,Book Stores,Amzn Mktp Uk,Supplies and Services related expenditure,08/10/2018,12.49,Director of Children's Services and Education
Business To Business Services,Misc Publishing & Printing,Www.Solopress.Com,Supplies and Services related expenditure,08/10/2018,52,Director of Community & Communication
Transportation,"Parking Lots, Meters, Garages",3c_*portsmouth City Co,Transport related expenditure,08/10/2018,1.5,Director of Children's Services and Education
Transportation,Passenger Railways,New Southern Railw,Transport related expenditure,08/10/2018,23.3,Director of Children's Services and Education
Other Supplies,Discount Stores,Argos Ltd,Supplies and Services related expenditure,08/10/2018,11.66,"Director of Housing, Neighbourhood and Building Services"
Business To Business Eqpt/Furn,Book Stores,Amzn Mktp UK Amazon.Co.Uk,Supplies and Services related expenditure,08/10/2018,20.83,Director of Children's Services and Education
Business To Business Eqpt/Furn,Book Stores,Amzn Mktp UK Amazon.Co.Uk,Supplies and Services related expenditure,08/10/2018,33.3,Director of Children's Services and Education
Transportation,Passenger Railways,Ticketofficesale - Swtrainsports,Transport related expenditure,08/10/2018,4.1,Director of Regeneration
Transportation,Passenger Railways,Trainline,Transport related expenditure,08/10/2018,115.23,Director of Regeneration
Hotels And Motels,Hotel Ibis,Hotel Ibis,Supplies and Services related expenditure,08/10/2018,715,Director of Adult Services
Other Supplies,Department Stores,Southern Co-Op 0043,Supplies and Services related expenditure,08/10/2018,3.73,"Director of Housing, Neighbourhood and Building Services"
Retail,Grocery Stores/Supermarkets,Tesco Stores 3048,Supplies and Services related expenditure,08/10/2018,2.27,"Director of Housing, Neighbourhood and Building Services"
Automobile Services & Supplies,Service Stations,Tesco Pfs 4274,Transport related expenditure,08/10/2018,74.61,Director of Children's Services and Education
Retail,Misc Food Stores - Default,Starbucks Wisley South,Supplies and Services related expenditure,08/10/2018,18.15,Director of Portsmouth International Port
Transportation,Local Commuter Transport,Hovertravel Ltd,Transport related expenditure,08/10/2018,19.12,Director of Children's Services and Education
Business Expenses/Services,Postage Stamps,Post Office Counter,Supplies and Services related expenditure,08/10/2018,1.77,Director of Adult Services
Medical,Lab/Med/Hospital Equipment,Wightman & Parrish,Premises related expenditure,08/10/2018,22.68,Director of Adult Services
Medical,Lab/Med/Hospital Equipment,Wightman & Parrish,Supplies and Services related expenditure,08/10/2018,249.53,Director of Adult Services
Medical,Lab/Med/Hospital Equipment,Wightman & Parrish,Supplies and Services related expenditure,08/10/2018,38.95,Director of Adult Services
Retail,Grocery Stores/Supermarkets,Tesco Stores 4579,Supplies and Services related expenditure,08/10/2018,23.76,Director of Adult Services
Retail,Grocery Stores/Supermarkets,Asda Stores,Supplies and Services related expenditure,08/10/2018,19.88,Director of Children's Services and Education
Business To Business Eqpt/Furn,Commercial Equipment - Default,Www.Identibadge.Com,Supplies and Services related expenditure,08/10/2018,129.23,Director of Children's Services and Education
Retail,Grocery Stores/Supermarkets,Tesco Store 3539,Supplies and Services related expenditure,08/10/2018,-12,Director of Children's Services and Education
Retail,Grocery Stores/Supermarkets,Tesco Store 3055,Supplies and Services related expenditure,08/10/2018,29.42,Director of Children's Services and Education
Retail,Grocery Stores/Supermarkets,Tesco Store 3055,Supplies and Services related expenditure,08/10/2018,49.58,Director of Children's Services and Education
Retail,Grocery Stores/Supermarkets,Tesco Store 3055,Supplies and Services related expenditure,08/10/2018,75.42,Director of Children's Services and Education
Retail,Grocery Stores/Supermarkets,Tesco Store 3055,Supplies and Services related expenditure,08/10/2018,17.19,Director of Children's Services and Education
Retail,Grocery Stores/Supermarkets,Tesco Store 3055,Supplies and Services related expenditure,08/10/2018,64.62,Director of Children's Services and Education
Retail,Grocery Stores/Supermarkets,Tesco Store 3055,Supplies and Services related expenditure,08/10/2018,31.8,Director of Children's Services and Education
Clothing/Shoes/Uniforms,Misc Apparel/Access Shops,Www.Ukwristbands.Com,Supplies and Services related expenditure,08/10/2018,17.7,Director of Children's Services and Education
Retail,Grocery Stores/Supermarkets,Js Online Grocery,Supplies and Services related expenditure,08/10/2018,4.71,Director of Children's Services and Education
Retail,Grocery Stores/Supermarkets,Js Online Grocery,Supplies and Services related expenditure,08/10/2018,38.05,Director of Children's Services and Education
Government,Schools - Default,North Lincolnshire,Supplies and Services related expenditure,08/10/2018,50,Director of Children's Services and Education
Professional Services,Detective/Protective Agen,Churches Fire Sec,Premises related expenditure,08/10/2018,80.15,Director of Children's Services and Education
Entertainment,Bands/Orchestras/Entertain,Pyramids Centre,Supplies and Services related expenditure,08/10/2018,5.4,Director of Adult Services
Equipment And Furniture,Furniture/Equip Stores,Bedworld,Supplies and Services related expenditure,08/10/2018,-25,Director of Adult Services
Government,Business/Secretarial School,Idm Training - Rt,Employees related expenditure,08/10/2018,595,Director of Regeneration
Business To Business Services,Misc Publishing & Printing,The T-Shirt Man,Supplies and Services related expenditure,08/10/2018,700,Director of Children's Services and Education
Business To Business Eqpt/Furn,Stationery/Office Supplies,Www.Brainwaves.Net,Supplies and Services related expenditure,08/10/2018,65.7,Director of Children's Services and Education
Miscellaneous,Other Direct Marketers,Amazon.Co.Uk,Supplies and Services related expenditure,08/10/2018,44.99,Director of Children's Services and Education
Miscellaneous,Continuity/Subscription Mercht,Tesco Delivery Saver2,Supplies and Services related expenditure,08/10/2018,2.91,Director of Children's Services and Education
Eating And Drinking Places,Eating Places/Restaurants,Subway Ocean Park,Supplies and Services related expenditure,08/10/2018,2.33,Director of Children's Services and Education
Retail,Grocery Stores/Supermarkets,Asda Groceries Online,Supplies and Services related expenditure,08/10/2018,22,Director of Children's Services and Education
Retail,Grocery Stores/Supermarkets,Asda Groceries Online,Supplies and Services related expenditure,08/10/2018,50.51,Director of Children's Services and Education
Facilities/Repair Supplies,Lumber/Build. Supply Stores,Selco Trading Ctr,Premises related expenditure,08/10/2018,4.04,Director of Adult Services
Other Supplies,Misc Speciality Retail,Top Embroidery,Supplies and Services related expenditure,08/10/2018,-59.96,Director of Portsmouth International Port
Entertainment,Bands/Orchestras/Entertain,Bh Live Active - Mount,Supplies and Services related expenditure,08/10/2018,-2.5,Director of Children's Services and Education
Entertainment,Bands/Orchestras/Entertain,Bh Live Active - Mount,Supplies and Services related expenditure,08/10/2018,5,Director of Children's Services and Education
Retail,Grocery Stores/Supermarkets,Tesco Stores 4579,Supplies and Services related expenditure,08/10/2018,15.83,Director of Children's Services and Education
Hotels And Motels,Lodging/Hotels/Motels/Resorts,The Liner Hotel,Supplies and Services related expenditure,08/10/2018,50,Director of Adult Services
Transportation,Passenger Railways,Sw Railway,Transport related expenditure,08/10/2018,61.6,Director of Finance & IT
Retail,Grocery Stores/Supermarkets,Js Online Grocery,Supplies and Services related expenditure,08/10/2018,2.42,Director of Children's Services and Education
Retail,Grocery Stores/Supermarkets,Js Online Grocery,Supplies and Services related expenditure,08/10/2018,10.45,Director of Children's Services and Education
Retail,Grocery Stores/Supermarkets,Js Online Grocery,Supplies and Services related expenditure,08/10/2018,5.67,Director of Children's Services and Education
Retail,Grocery Stores/Supermarkets,Js Online Grocery,Supplies and Services related expenditure,08/10/2018,94.32,Director of Children's Services and Education
Retail,Grocery Stores/Supermarkets,Js Online Grocery,Supplies and Services related expenditure,08/10/2018,8.04,Director of Children's Services and Education
Other Supplies,Discount Stores,Theworks,Supplies and Services related expenditure,08/10/2018,3.75,Director of Children's Services and Education
Government,Govt Serv - Default,Royal Victoria Country,Supplies and Services related expenditure,08/10/2018,5.25,Director of Children's Services and Education
Retail,Sporting Goods Stores,Decathlon Portsmouth,Supplies and Services related expenditure,08/10/2018,12.48,Director of Children's Services and Education
Automobile Services & Supplies,Service Stations,Tesco Pfs 3837,Supplies and Services related expenditure,08/10/2018,25,Director of Children's Services and Education
Hotels And Motels,Park Inns International,Park Inn Hotel Xvhpd,Supplies and Services related expenditure,08/10/2018,89.25,"Director of Culture, Leisure & Regulatory Services"
Hotels And Motels,Park Inns International,Park Inn Hotel Xvhpd,Supplies and Services related expenditure,08/10/2018,89.25,"Director of Culture, Leisure & Regulatory Services"
Business To Business Eqpt/Furn,Book Stores,Amzn Mktp Uk,Capital related expenditure,08/10/2018,4.57,Director of Regeneration
Transportation,Passenger Railways,Ticketofficesale - Swtrainsports,Transport related expenditure,08/10/2018,11.7,Director of Regeneration
Transportation,Passenger Railways,Ticketofficesale - Swtrainsports,Transport related expenditure,08/10/2018,11.7,Director of Regeneration
Transportation,Passenger Railways,Ticketofficesale - Swtrainsports,Transport related expenditure,08/10/2018,52.8,Director of Regeneration
Transportation,Passenger Railways,Ticketofficesale - Swtrainsports,Transport related expenditure,08/10/2018,52.8,Director of Regeneration
Entertainment,Bands/Orchestras/Entertain,Bh Live Active - Mount,Supplies and Services related expenditure,08/10/2018,6,Director of Adult Services
Entertainment,Bands/Orchestras/Entertain,Bh Live Active - Mount,Supplies and Services related expenditure,08/10/2018,-6,Director of Adult Services
Equipment And Furniture,Equip/Furn Rent/Lease Serv,Afi Uplift,Employees related expenditure,08/10/2018,830,Director of Portsmouth International Port
Business To Business Facility/,Industrial Supplies - Def,Www.Arco.Co.Uk,Supplies and Services related expenditure,08/10/2018,27.93,"Director of Housing, Neighbourhood and Building Services"
Eating And Drinking Places,Fast Food Restaurants,Costa,Supplies and Services related expenditure,08/10/2018,1.83,Director of Children's Services and Education
Transportation,"Parking Lots, Meters, Garages",Queen Alexandra Hospit,Transport related expenditure,08/10/2018,3.67,Director of Children's Services and Education
Eating And Drinking Places,Fast Food Restaurants,McDonalds,Supplies and Services related expenditure,08/10/2018,3.83,Director of Children's Services and Education
Transportation,Local Commuter Transport,Www.Gosportferry.Co.Uk,Supplies and Services related expenditure,08/10/2018,6,Director of Children's Services and Education
Transportation,Passenger Railways,Ticketofficesale - Swtrainsports,Transport related expenditure,08/10/2018,97.5,Director of Children's Services and Education
Retail,Grocery Stores/Supermarkets,Tesco Stores 4579,Supplies and Services related expenditure,08/10/2018,26.67,Director of Children's Services and Education
Retail,Grocery Stores/Supermarkets,Tesco Stores 4579,Supplies and Services related expenditure,08/10/2018,13.9,Director of Children's Services and Education
Business To Business Eqpt/Furn,Stationery/Office Supplies,Brainwaves,Supplies and Services related expenditure,08/10/2018,26.28,Director of Children's Services and Education
Eating And Drinking Places,Fast Food Restaurants,McDonalds,Agency and Third Party Payments related expenditure,08/10/2018,3.83,Director of Children's Services and Education
Eating And Drinking Places,Fast Food Restaurants,McDonalds,Agency and Third Party Payments related expenditure,08/10/2018,2.29,Director of Children's Services and Education
Eating And Drinking Places,Fast Food Restaurants,McDonalds,Agency and Third Party Payments related expenditure,08/10/2018,10.07,Director of Children's Services and Education
Eating And Drinking Places,Fast Food Restaurants,McDonalds,Agency and Third Party Payments related expenditure,08/10/2018,2.33,Director of Children's Services and Education
Transportation,Passenger Railways,Sw Railway,Transport related expenditure,08/10/2018,61.6,Director of Finance & IT
Transportation,Passenger Railways,Sw Railway,Transport related expenditure,08/10/2018,62.2,Director of Finance & IT
Business To Business Eqpt/Furn,Book Stores,Amzn Mktp Uk,Supplies and Services related expenditure,08/10/2018,5.83,Director of Regeneration
Other Supplies,Misc Speciality Retail,Amazon.Co.Uk Amazon.Co.Uk,Supplies and Services related expenditure,08/10/2018,13.33,Director of Children's Services and Education
Retail,Grocery Stores/Supermarkets,Www.My.Morrisons.C,Supplies and Services related expenditure,08/10/2018,20,Director of Children's Services and Education
Retail,Grocery Stores/Supermarkets,Www.My.Morrisons.C,Supplies and Services related expenditure,08/10/2018,20,Director of Children's Services and Education
Retail,Grocery Stores/Supermarkets,Asda Groceries Online,Supplies and Services related expenditure,08/10/2018,4.17,Director of Children's Services and Education
Retail,Grocery Stores/Supermarkets,Asda Groceries Online,Supplies and Services related expenditure,08/10/2018,32.7,Director of Children's Services and Education
Retail,Grocery Stores/Supermarkets,Tesco Stores 4579,Supplies and Services related expenditure,08/10/2018,77.27,Director of Children's Services and Education
Business To Business Eqpt/Furn,Book Stores,Nfer,Supplies and Services related expenditure,08/10/2018,117.12,Director of Children's Services and Education
Business To Business Eqpt/Furn,Commercial Furniture,Posturite (UK) Ltd,Supplies and Services related expenditure,08/10/2018,120.2,Director of Finance & IT
Retail,Electronics Sales,Www.Novatech.Co.Uk,Supplies and Services related expenditure,08/10/2018,183.28,Director of Community & Communication
Retail,Electronics Sales,Www.Novatech.Co.Uk,Supplies and Services related expenditure,08/10/2018,45.82,Director of Community & Communication
Facilities Maintenance,Clean/Maint/Janitoral Serv,Suez Recycling&recover,Premises related expenditure,08/10/2018,34.73,Director of Adult Services
Medical,Lab/Med/Hospital Equipment,Wightman & Parrish Ltd,Premises related expenditure,08/10/2018,193.56,Director of Adult Services
Retail,Grocery Stores/Supermarkets,Fruit Basket Ltd,Supplies and Services related expenditure,08/10/2018,242.99,Director of Adult Services
Retail,Misc Food Stores - Default,Bransbury Park Butchers,Supplies and Services related expenditure,08/10/2018,383.28,Director of Adult Services
